Cogmind - Beta 11.1 @@@ ROGUE MODE // 2022.05.30 @ 20:01:17 Player: Boris Result: Destroyed by S-43 Plague with Heavy Machine Gun Performance ------------- Evolutions (9) 4500 Regions Visited (35) 7000 Robots Destroyed (275) 1375 Value Destroyed (8725) 8725 Prototype IDs (132) 2640 Alien Tech Used (18) 3600 Bonus (27794) 27794 TOTAL SCORE: 55634 Bonus ------- Triggered Max Security 2000 High Alert Combat Kills 808 Follower Combat Kills 1656 Network Hubs Disabled 200 Aligned with FarCom 300 Met Data Miner 300 Met Zhirov 300 Met Warlord at Base 500 MAIN.C Attacked Warlord 500 Warlord Defense Kills 1402 Built Enhanced Grunts 300 A7 Reached Mainframe 300 Found Hidden Lab 3000 Used Core Reset Matrix 3000 Met Warlord at Research 2000 Pursued by Intercept 1500 Met MAIN.C 5000 Destroyed MAIN.C Shell 5000 Met Warlord at Command 2000 Friendly Fire -2272 Cogmind --------- Core Integrity 0/1600 Matter 225/425 Energy 22/700 System Corruption 0% Temperature Cool (0) Movement Immobile (Siege) Location -1/Command Parts ------- > --- POWER (2) -------- Vortex Chain Reactor > --- PROPULSION (8) --- Experimental Biometal Heavy Treads High-density Centrium Leg High-density Centrium Leg High-density Centrium Leg Experimental Biometal Leg Improved Q-thruster > --- UTILITY (14) ----- Experimental Power Amplifier Machine Analyzer Core Analyzer Experimental Weapon Cycler AEGIS Remote Shield Deep Network Scanner Deep Network Scanner Advanced System Shield Experimental System Purifier Spacefold Activator > --- WEAPON (2) ------- RU-N14's Throwing Claymores v3 > --- INVENTORY (5) ---- Heavy Hardcell Cannon Core Stripper Peak State ------------ > --- POWER ------------ Quantum Reactor Light Quantum Reactor > --- PROPULSION ------- Cooled Nuclear Pulse Thruster Cooled Nuclear Pulse Thruster Field Propulsion Array Improved Diametric Drive Improved Diametric Drive Improved Q-thruster Experimental Q-thruster > --- UTILITY ---------- Experimental Power Amplifier Medium Storage Unit Structural Scanner Experimental Optical Array Experimental Optical Array Femtoactuators Advanced Reaction Control System Medium Regenerative Plating Advanced Hacking Suite Deep Network Scanner Deep Network Scanner Advanced System Shield Quantum Router Spacefold Activator > --- WEAPON ----------- Sigix Broadsword > --- INVENTORY -------- Advanced Energy Well High-powered Transdimensional Reconstructor High-powered Transdimensional Reconstructor Core Regenerator Vortex Rail Sigix Shearcannon RU-N14's Throwing Claymores v3 Core Stripper [Rating: 231] Favorites ----------- Power Heavy Ion Engine Engine Heavy Ion Engine Power Core Micro Fission Core Reactor Light Quantum Reactor Propulsion Cooled Nuclear Pulse Thruster Treads Light Treads Leg High-density Centrium Leg Wheel Wheel Hover Unit Aerolev Unit Flight Unit Cooled Nuclear Pulse Thruster Utility Medium Storage Unit Device Structural Scanner Storage Medium Storage Unit Processor Transport Network Coupler Hackware Deep Network Scanner Protection Medium Regenerative Plating Artifact Spacefold Activator Weapon Makeshift Sword Energy Gun Improved EM Shotgun Energy Cannon Nova Cannon Ballistic Gun Heavy Assault Rifle Ballistic Cannon Heavy Hardcell Cannon Launcher Mini Grenade Launcher Special Weapon RU-N14's Throwing Claymores v3 Impact Weapon Hammer Slashing Weapon Makeshift Sword Piercing Weapon Plasma Lance Build | -11 -10 -10 -9 -9 -9 -8 -8 -7 -7 -7 -7 -6 -6 -6 -6 -6 -6 -5 -5 -5 -5 -4 -4 -4 -4 -4 -3 -3 -3 -3 -2 -2 -2 -1 -1 ------- Run | Scr Mat Min Mat Min Exi Min Mat Fac Low Low Dat Pro Fac Ext Cet Arc Hub Fac Upp Upp War Pro Fac Upp Upp Zhi Pro Res Arm Lab Res Qua Sec Acc Com Slots Evolved 18 | . . . 2 . . . 2 2 . . . . 2 . . . . 2 . . . . 2 . . . . 2 . . 2 . . 2 . Power 1 | . . . . . . . . . . . . . . . . . . . . . . . 1 . . . . . . . . . . . . Propulsion 5 | . . . 1 . . . . 2 . . . . . . . . . 1 . . . . . . . . . 1 . . . . . . . Utility 12 | . . . 1 . . . 2 . . . . . 2 . . . . 1 . . . . 1 . . . . 1 . . 2 . . 2 . Weapon . | . . . . . . . . . . . . . . . . . . . . . . . . . . . . . . . . . . . . Parts Attached 370 | 6 5 13 24 5 4 3 17 13 7 7 5 6 24 17 10 2 1 22 10 2 22 5 24 3 . 7 2 4 8 4 20 3 6 24 35 Power 27 | 1 1 1 4 . . . . 1 . . . 1 2 1 2 . . . . . 1 . 5 . . 1 . . . . . 1 . 1 4 Engine 10 | 1 1 1 4 . . . . . . . . 1 . . . . . . . . . . 2 . . . . . . . . . . . . Core 9 | . . . . . . . . 1 . . . . 2 1 . . . . . . 1 . 2 . . . . . . . . 1 . . 1 Reactor 8 | . . . . . . . . . . . . . . . 2 . . . . . . . 1 . . 1 . . . . . . . 1 3 Propulsion 55 | 2 . 8 6 2 . 1 6 3 . . . 1 1 1 . . . 7 . . 1 . 1 . . 3 . 1 . . 2 1 1 1 6 Treads 6 | 2 . . . 2 . 1 . . . . . . . . . . . . . . . . . . . . . . . . . . . . 1 Leg 5 | . . 1 . . . . . . . . . . . . . . . . . . . . . . . . . . . . . . . . 4 Wheel 12 | . . 7 5 . . . . . . . . . . . . . . . . . . . . . . . . . . . . . . . . Hover 2 | . . . . . . . 1 . . . . . . . . . . . . . . . . . . . . . . . 1 . . . . Flight 30 | . . . 1 . . . 5 3 . . . 1 1 1 . . . 7 . . 1 . 1 . . 3 . 1 . . 1 1 1 1 1 Utility 159 | 2 1 2 4 2 1 . 10 5 5 6 4 4 12 2 5 1 . 11 4 2 11 2 5 1 . 3 . 2 7 1 12 . 3 18 11 Device 89 | 1 . . . 1 . . 4 2 5 5 3 4 8 2 1 . . 6 3 2 8 1 3 1 . 2 . . 2 . 8 . 1 8 8 Storage 12 | 1 1 1 . . . . 1 . . . . . . . 1 . . . . . . 1 2 . . . . . 2 . . . . 1 1 Processor 15 | . . 1 1 . . . 2 1 . . . . . . . . . . 1 . 1 . . . . . . . . . . . 1 5 2 Hackware 18 | . . . . . . . 2 1 . . . . 4 . 1 1 . 1 . . 1 . . . . . . 2 2 1 1 . . 1 . Protection 23 | . . . 3 1 1 . 1 1 . 1 1 . . . 2 . . 4 . . 1 . . . . 1 . . 1 . 3 . . 2 . Artifact 2 | . . . . . . . . . . . . . . . . . . . . . . . . . . . . . . . . . 1 1 . Weapon 129 | 1 3 2 10 1 3 2 1 4 2 1 1 . 9 13 3 1 1 4 6 . 9 3 13 2 . . 2 1 1 3 6 1 2 4 14 Energy Gun 29 | 1 1 . 8 . 2 . . . . . . . . . . . . . . . 2 . 9 1 . . 1 1 . 2 . . . 1 . Energy Cannon 23 | . . . . . . . . . . . . . 4 . 1 . . 2 4 . . . . . . . . . 1 . 4 . . 1 6 Ballistic Gun 4 | . . . . . 1 . . . . . . . 1 1 . . . . . . 1 . . . . . . . . . . . . . . Ballistic Cannon 3 | . . . . . . . . . . . . . . . . . . . . . . . . . . . . . . . . . . . 3 Launcher 16 | . 1 1 1 1 . 1 . 1 1 . . . . 3 . . . 1 2 . 1 1 . 1 . . . . . . . . . . . Special Weapon 17 | . . . . . . . . . 1 . . . . . . . . . . . 5 2 4 . . . 1 . . 1 1 . 1 . 1 Impact Weapon 2 | . 1 1 . . . . . . . . . . . . . . . . . . . . . . . . . . . . . . . . . Slashing Weapon 31 | . . . 1 . . 1 1 3 . 1 1 . 4 6 2 1 1 1 . . . . . . . . . . . . . 1 1 2 4 Piercing Weapon 4 | . . . . . . . . . . . . . . 3 . . . . . . . . . . . . . . . . 1 . . . . Special Melee Weapon . | . . . . . . . . . . . . . . . . . . . . . . . . . . . . . . . . . . . . Unidentified Prototypes 52 | . . . 2 1 . . 1 . . . . . 1 . 4 . . 3 . . 10 . 3 . . 3 . . 2 4 2 . 2 3 11 Corrupted Parts 6 | 1 . 4 1 . . . . . . . . . . . . . . . . . . . . . . . . . . . . . . . . System Corruption 13 | 1 . 11 1 . . . . . . . . . . . . . . . . . . . . . . . . . . . . . . . . Parts Lost 52 | . . 2 8 2 . 2 6 1 . . 2 1 1 3 . . . 3 . . . . 2 1 . . . . . . . . 1 1 16 Power 6 | . . . 2 . . . . . . . 1 . . . . . . . . . . . 1 . . . . . . . . . . . 2 Propulsion 21 | . . 2 2 2 . 1 4 . . . . 1 . 2 . . . 2 . . . . . . . . . . . . . . . . 5 Utility 17 | . . . 1 . . 1 1 1 . . 1 . . 1 . . . . . . . . 1 . . . . . . . . . 1 1 8 Weapon 8 | . . . 3 . . . 1 . . . . . 1 . . . . 1 . . . . . 1 . . . . . . . . . . 1 Highest Loss Streak 12 | . . 1 3 1 . 1 5 1 . . 2 1 1 2 . . . 2 . . . . 1 1 . . . . . . . . 1 1 12 To Critical Strikes . | . . . . . . . . . . . . . . . . . . . . . . . . . . . . . . . . . . . . Average Slot Usage (%) 91 | . 98 84 93 100 77 97 94 92 100 100 92 84 94 87 80 80 80 87 89 94 95 93 89 89 84 83 84 81 92 91 88 92 87 87 74 Engine 3 | . 14 13 10 11 11 11 6 . . . . 1 3 . . . . . . . . . 1 . . . . . . . . . . . 1 Core 1 | . . . . . . . . 7 7 7 6 . 2 5 5 . . . . . 3 5 2 . . . . . 2 4 4 4 4 . . Reactor 1 | . . . . . . . . . . . . . . . . 6 6 5 5 5 1 . 2 5 5 6 5 4 4 4 4 4 4 5 2 Treads 6 | . 28 14 . 20 22 30 18 . . . . . . . . . . . . . . . . . . . . . . . . . . . . Wheel 3 | . . 10 32 12 11 1 . . . . . . . . . . . . . . . . . . . . . . . . . . . . . Flight 21 | . . . . . . . 8 34 38 38 38 37 33 30 26 26 26 30 35 35 35 35 31 31 31 31 31 33 33 32 29 29 29 24 17 Device 7 | . 14 3 . . . . 9 7 7 6 4 15 7 11 11 6 6 8 10 11 6 5 8 15 15 14 15 9 8 9 11 14 12 12 9 Storage 7 | . 14 14 11 11 11 11 9 7 7 7 7 7 6 6 6 6 6 5 5 5 5 5 9 10 10 10 10 9 8 4 4 4 4 3 4 Processor 6 | . . 1 11 11 11 11 16 7 15 15 15 15 10 6 6 6 6 5 5 5 5 5 . . . . . . . . . . . 5 8 Hackware 12 | . . . . . . . 3 11 7 7 2 . 19 20 20 26 26 23 17 17 21 23 19 15 15 15 15 17 26 27 28 25 22 20 12 Protection 4 | . . . 7 11 11 9 6 . . . 6 . . . . . . 1 5 5 5 5 5 5 5 5 5 4 1 . 2 4 4 3 4 Energy Gun 2 | . 13 3 18 11 . 8 . . . . . . . . . . . . . . . . 2 . . . . 2 1 . . . . . . Launcher 2 | . . 9 . 10 . 9 6 . . . . . . . . . . . 1 5 . . . . . . . . . . . . . . . Special Weapon 1 | . . . . . . . . . 6 7 1 . . . . . . . . . 5 4 4 4 . . . . . 1 2 2 . . . Impact Weapon 1 | . 12 13 1 . . . . . . . . . . . . . . . . . . . . . . . . . . . . . . . . Slashing Weapon 2 | . . . . . . 2 11 13 7 7 7 7 8 3 . . . 2 . . . . . . . . . . . . . 1 3 2 1 Naked Turns . | . . . . . . . . . . . . . . . . . . . . . . . . . . . . . . . . . . . . Heaviest Build 103 | 13 20 90 98 97 103 103 97 23 22 22 22 25 29 25 28 24 24 36 38 38 44 34 49 47 39 39 39 44 51 48 49 53 54 75 94 Greatest Support 144 | 40 40 40 38 38 12 60 60 25 25 25 25 28 28 26 21 21 24 50 38 38 39 39 50 47 50 41 50 57 57 48 58 58 81 81 144 Greatest Overweight (x) 11 | . . 8 7 7 8 8 2 1 . . . 4 1 4 1 1 1 9 1 . 11 2 10 1 . . . . 2 . 5 . . 1 1 Average Overweight (x) . | . . 1 2 6 7 2 . . . . . . . . . . . . . . . . . . . . . . . . . . . . . Largest Inventory Capacity 25 | 8 10 25 25 25 25 25 25 10 10 10 10 10 10 10 10 10 10 10 10 10 10 10 10 10 10 10 10 10 10 10 10 10 10 10 10 Average Capacity 13 | 6 8 13 25 25 25 25 20 10 10 10 10 10 10 10 10 10 10 10 10 10 10 10 10 10 10 10 10 10 9 10 10 10 10 10 9 Most Carried 25 | 3 8 16 25 25 25 24 24 10 10 10 10 10 10 10 10 10 10 10 10 10 10 10 10 10 10 10 10 10 10 10 10 10 10 10 10 Average Carried 12 | 2 6 10 23 24 24 22 18 9 9 10 9 9 9 9 9 9 9 8 8 9 9 9 9 9 9 10 9 9 9 10 9 9 9 9 7 Final Capacity 25 | 8 10 25 25 25 25 25 10 10 10 10 10 10 10 10 10 10 10 10 10 10 10 10 10 10 10 10 10 10 10 10 10 10 10 10 5 Final Carried 25 | 3 8 16 25 25 23 24 10 9 10 10 10 10 10 10 10 10 10 9 9 9 10 10 9 9 10 10 10 10 10 10 10 10 10 10 4 Class Distribution -------------------- 22% | Mutant 15% | Wizard-Sprinter 13% | Hacker-Scout 7% | Wizard-Mutant 6% | Hacker-Sprinter 6% | Wizard-Scout 5% | Scavenger-Mutant 5% | Scout 3% | Scavenger-Assassin 3% | Hacker-Ninja Dominant Class ---------------- Mutant | -10/Materials Mutant | -10/Mines Mutant | -9/Materials Mutant | -9/Mines Mutant | -9/Exiles Scavenger-Mutant | -8/Mines Scavenger-Assassin | -8/Materials Scout | -7/Factory Scout | -7/Lower Caves Scout | -7/Lower Caves Sprinter | -7/Data Miner Assassin | -6/Proximity Caves Hacker-Scout | -6/Factory Hacker-Ninja | -6/Extension Hacker-Scout | -6/Cetus Wizard-Scout | -6/Archives Wizard-Scout | -6/Hub_04(d) Wizard-Ninja | -5/Factory Hacker-Scout | -5/Upper Caves Hacker-Scout | -5/Upper Caves Wizard-Mutant | -5/Warlord Wizard-Mutant | -4/Proximity Caves Wizard-Sprinter | -4/Factory Hacker-Sprinter | -4/Upper Caves Hacker-Sprinter | -4/Upper Caves Hacker-Sprinter | -4/Zhirov Hacker-Sprinter | -3/Proximity Caves Wizard-Sprinter | -3/Research Wizard-Sprinter | -3/Armory Wizard-Sprinter | -3/Lab Wizard-Sprinter | -2/Research Wizard-Sprinter | -2/Quarantine Wizard-Sprinter | -2/Section 7 Wizard-Scout | -1/Access Alien-Sprinter | -1/Command Resources | -11 -10 -10 -9 -9 -9 -8 -8 -7 -7 -7 -7 -6 -6 -6 -6 -6 -6 -5 -5 -5 -5 -4 -4 -4 -4 -4 -3 -3 -3 -3 -2 -2 -2 -1 -1 ----------- Run | Scr Mat Min Mat Min Exi Min Mat Fac Low Low Dat Pro Fac Ext Cet Arc Hub Fac Upp Upp War Pro Fac Upp Upp Zhi Pro Res Arm Lab Res Qua Sec Acc Com Matter Collected 5206 | 260 152 177 262 208 36 205 242 58 132 20 . 106 282 368 88 32 . 251 455 73 432 57 250 13 23 . . . 95 . 434 5 166 249 75 Remotely . | . . . . . . . . . . . . . . . . . . . . . . . . . . . . . . . . . . . . Salvage Created 11017 | 111 340 477 1217 332 . 324 879 58 40 . 26 90 803 1560 121 38 . 574 284 14 134 169 351 . . . . . 95 . 330 . 231 807 1612 Parts 504 | 7 23 13 73 36 . 19 46 5 5 . 3 7 30 65 6 5 . 36 10 1 8 5 17 . . . . . . . 15 . 8 27 34 Haulers Intercepted 17 | . 2 . 2 . . . 3 . . . . . 3 2 . . . 1 . . . . 1 . . . . . . . 1 . . 2 . Recyclers Shooed 3 | . . 1 . . . . . . . . . . . 1 . . . . . . . . . . . . . . . . 1 . . . . Parts Field Recycled . | . . . . . . . . . . . . . . . . . . . . . . . . . . . . . . . . . . . . Retrieved Matter . | . . . . . . . . . . . . . . . . . . . . . . . . . . . . . . . . . . . . Parts Self-Destructed 30 | . . . . . . . . . 4 . . 5 . . . . . . 7 2 . 5 . . . . 7 . . . . . . . . Prevented . | . . . . . . . . . . . . . . . . . . . . . . . . . . . . . . . . . . . . Kills | -11 -10 -10 -9 -9 -9 -8 -8 -7 -7 -7 -7 -6 -6 -6 -6 -6 -6 -5 -5 -5 -5 -4 -4 -4 -4 -4 -3 -3 -3 -3 -2 -2 -2 -1 -1 ------- Run | Scr Mat Min Mat Min Exi Min Mat Fac Low Low Dat Pro Fac Ext Cet Arc Hub Fac Upp Upp War Pro Fac Upp Upp Zhi Pro Res Arm Lab Res Qua Sec Acc Com Combat Hostiles Destroyed 151 | . 7 11 20 17 . 7 10 . . . . 1 7 11 . . . 10 7 1 11 12 1 . . . . . 1 . . . 1 6 10 Melee 24 | . 1 1 . . . 2 8 . . . . 1 . 6 . . . 1 . . . . . . . . . . . . . . 1 3 . Guns 18 | . . 1 15 . . 1 . . . . . . . . . . . . . . . . 1 . . . . . . . . . . . . Cannons 13 | . . . . . . . . . . . . . . . . . . . . . . 1 . . . . . . 1 . . . . 3 8 AOE 88 | . 3 7 4 17 . 4 2 . . . . . 7 5 . . . 8 7 . 11 11 . . . . . . . . . . . . 2 Classes Destroyed 21 | 2 6 1 2 . . 1 1 . 1 . . . . 1 . . . . 1 . 3 . . . . . . . . . . . 1 . 1 Worker 28 | . . 2 2 . . 2 3 . . . . . 7 5 . . . 5 . . . . 1 . . . . . . . 1 . . . . Builder 20 | . 2 3 1 1 . 1 1 . . . . . 1 6 . . . 1 . . . . 1 . . . . . . . 2 . . . . Tunneler 7 | 1 . 1 . 2 . 1 . . . . . . . 1 . . . . . . . . 1 . . . . . . . . . . . . Hauler 17 | . 2 . 2 . . . 3 . . . . . 3 2 . . . 1 . . . . 1 . . . . . . . 1 . . 2 . Recycler 20 | 1 . 2 2 2 . 2 3 . . . . . 1 6 . . . . . . . . . . . . . . . . 1 . . . . Minesweeper 3 | . . . . . . . . . 1 . . 1 . . . . . . 1 . . . . . . . . . . . . . . . . Mechanic 1 | . . . . . . . . . . . . . . . . . . . . . . . . . . . . . . . . . . . 1 Operator 7 | . 1 . 1 . . . . 1 . . . . . 1 . 1 . 1 . . . . . . . . . . . . . . 1 . . Watcher 16 | . 1 . 2 . . . . 1 . . . . 2 1 . . . 1 . . . . 2 . . . . . . . 1 . . 1 4 Swarmer 48 | . 3 8 4 17 . . . . . . . . 1 . . . . 5 4 . 1 5 . . . . . . . . . . . . . Grunt 64 | . 4 3 11 . . 6 5 . . . . 1 5 5 . . . 4 1 . 6 6 . . . . . . . . . . 1 2 4 Brawler 4 | . . . 1 . . . . . . . . . . . . . . 1 1 . . 1 . . . . . . . . . . . . . Duelist 1 | . . . . . . 1 . . . . . . . . . . . . . . . . . . . . . . . . . . . . . Protector 1 | . . . . . . . . . . . . . . . . . . . . . 1 . . . . . . . . . . . . . . Researcher 2 | . . . . . . . . . . . . . . . . . . . . . . . . . . . . . . . . . 2 . . Sentry 13 | . . . 4 . . . 3 . . . . . 1 1 . . . . . . . . 1 . . . . . 1 . . . . 2 . Hunter 10 | . . . . . . . 2 . . . . . . 4 . . . . 1 1 . . . . . . . . . . . . . 2 . Programmer 6 | . . . . . . . . . . . . . . . . . . . . . 1 . . . . . . . . . . . . . 5 Behemoth 1 | . . . . . . . . . . . . . . 1 . . . . . . . . . . . . . . . . . . . . . Executioner 2 | . . . . . . . . . . . . . . . . . . . . . 2 . . . . . . . . . . . . . . Samaritan 2 | . . . . . . . . . . . . . . . . . . . 2 . . . . . . . . . . . . . . . . Butcher 1 | . . . . . . . . . . . . . . . 1 . . . . . . . . . . . . . . . . . . . . Best Kill Streak 15 | 1 4 7 8 5 . 7 6 1 1 . 1 2 7 15 . 1 . 10 4 1 6 5 2 . . . . . 1 . 2 . 2 3 6 Combat Bots Only 6 | . 3 6 6 5 . 3 3 . . . . 1 3 3 . . . 5 4 1 6 5 1 . . . . . 1 . . . 1 3 4 Max Kills in Single Turn 10 | 1 2 3 2 5 . 1 3 1 1 . 1 1 7 3 1 1 . 10 3 1 3 4 1 . . . . . 1 . 1 . 1 1 2 Gunslinging 1 | . . . 1 . . . . . . . . . . . . . . . . . . . . . . . . . . . . . . . . Exploded 5 | . 2 2 1 5 . 1 1 . . . . . 3 2 . . . 5 3 . 3 4 . . . . . . . . . . . . 1 Melee 1 | . 1 1 . . . 1 1 . . . . 1 . 1 . . . 1 . . . . . . . . . . . . . . 1 1 . Uniques/NPCs Destroyed 3 | . . . . . . . . . . . 1 . . . 1 . . . . . . . . . . . . . . . . . . . 1 Data Miner (-7/Data Miner) A7 (-6/Cetus) MAIN.C Shell (-1/Command) Combat | -11 -10 -10 -9 -9 -9 -8 -8 -7 -7 -7 -7 -6 -6 -6 -6 -6 -6 -5 -5 -5 -5 -4 -4 -4 -4 -4 -3 -3 -3 -3 -2 -2 -2 -1 -1 -------- Run | Scr Mat Min Mat Min Exi Min Mat Fac Low Low Dat Pro Fac Ext Cet Arc Hub Fac Upp Upp War Pro Fac Upp Upp Zhi Pro Res Arm Lab Res Qua Sec Acc Com Damage Taken 12475 | . 120 418 775 139 . 554 785 97 . 55 161 39 238 418 . . 63 674 110 265 52 139 205 27 . . . . 82 . 72 . 917 1156 4914 Core 3706 | . 11 54 110 13 . 94 341 51 . . 82 . 70 222 . . 32 105 18 82 52 55 13 . . . . . . . 44 . 315 340 1602 Absorbed by Shields 1186 | . . . . . . . . . . . . . . . . . . . . . . . . . . . . . . . . . . 16 1170 Reduced by Siege Mode 161 | . . . . . . . . . . . . . . . . . . . . . . . . . . . . . . . . . . . 161 Redirected to Shielding 108 | . . . . . . . . . . . . . . . . . . . . . . . . . . . . . . . . . . . 108 Regen/Repaired (Parts) 2123 | . . . . . . . 38 32 . . . . 11 . 1 . . 74 291 36 31 30 91 . . . . . 209 . 48 . 334 674 223 Core Remaining (%) 72 | 100 . 74 . . . 45 38 . . . . 81 . . . . 61 . . . . 68 . . . . 98 . . 88 . . 70 . . Volleys Fired 389 | 6 11 19 46 19 2 15 5 . 15 . . . 17 16 6 . . 7 21 3 12 11 32 1 . . 2 . 21 3 35 . 2 7 55 Largest 2 | 1 1 1 2 1 2 2 1 . 1 . . . 1 2 1 . . 1 1 1 1 1 2 2 . . 1 . 1 1 1 . 1 1 1 Hottest 180 | 40 40 40 101 45 131 105 30 . 20 . . . 85 89 75 . . 98 98 50 50 50 108 108 . . 45 . 113 113 113 . . 180 180 Shots Fired 447 | 6 11 19 81 21 4 20 5 . 15 . . . 17 17 6 . . 7 21 3 12 11 44 2 . . 2 . 21 3 35 . 2 7 55 Gun 167 | 6 7 12 80 11 4 5 . . . . . . . 7 . . . . . . . . 31 1 . . 1 . . . . . . 2 . Cannon 150 | . . . . . . . . . . . . . 17 . 6 . . 6 15 . . . . . . . . . 21 3 29 . . 5 48 Launcher 66 | . 4 7 1 10 . 15 5 . . . . . . 10 . . . 1 6 3 2 2 . . . . . . . . . . . . . Special 64 | . . . . . . . . . 15 . . . . . . . . . . . 10 9 13 1 . . 1 . . . 6 . 2 . 7 Kinetic 20 | . . . . . . . . . . . . . . 7 . . . . . . . . . . . . . . . . . . . . 13 Thermal 157 | . . . 8 . 4 5 . . 15 . . . 13 . . . . 6 15 . . . 36 2 . . . . 21 3 29 . . . . Explosive 95 | . 4 7 1 10 . 15 5 . . . . . . 10 . . . 1 6 3 12 11 . . . . 1 . . . . . 2 . 7 Electromagnetic 120 | 6 7 12 72 11 . . . . . . . . 4 . 6 . . . . . . . 2 . . . . . . . . . . . . Slashing 40 | . . . . . . . . . . . . . . . . . . . . . . . . . . . . . . . . . . 5 35 Entropic 9 | . . . . . . . . . . . . . . . . . . . . . . . 6 . . . 1 . . . . . . 2 . Robot Hit Streak 18 | 2 2 6 13 6 . 7 8 . 5 . . . 3 4 2 . . 1 13 1 2 7 6 . . . . . 4 . 5 . . 4 18 Robot Miss Streak 18 | 1 1 1 5 2 . 1 1 . 2 . . . 1 3 1 . . 9 18 10 1 5 2 . . . . . 2 . 4 . . 4 5 Penetration Max 1 | . . . . . . . . . . . . . . . . . . . . . . . 1 . . . . . . . . . . . 1 Secondary Targets 2 | . . . 2 . . . . . . . . . . . . . . . . . . . . . . . . . . . . . . . . Max Gunslinging Chain 1 | . . . 1 . . . . . . . . . . . . . . . . . . . . . . . . . . . . . . . . Capacitor 32 | . . . . . . . . . . . . . . . . . . . . . . . . . . . . . . . . . . . 32 Shots Hit Robots 472 | 4 19 27 72 17 . 34 53 2 8 . 1 3 30 28 9 1 . 8 18 2 3 7 27 . . . . . 4 . 17 . 8 14 56 Core Hits 504 | 3 12 14 47 22 . 18 27 2 2 . 1 2 24 57 5 1 . 41 29 13 25 32 11 . . . . . 3 . 8 . 3 17 85 Critical Kills 2 | . . . . . . . . . . . . . . . . . . . . . . . 2 . . . . . . . . . . . . Critical Parts Destroyed 11 | . 6 4 . . . . . . . . . . . 1 . . . . . . . . . . . . . . . . . . . . . Critical Strikes 30 | . 6 4 1 . . 5 4 . . . . . . 2 1 . . . . . 2 1 2 . . . . . . . . . . 1 1 Burn 1 | . . . 1 . . . . . . . . . . . . . . . . . . . . . . . . . . . . . . . . Destroy 3 | . . . . . . . . . . . . . . 1 . . . . . . . . 2 . . . . . . . . . . . . Smash 10 | . 6 4 . . . . . . . . . . . . . . . . . . . . . . . . . . . . . . . . . Sever 16 | . . . . . . 5 4 . . . . . . 1 1 . . . . . 2 1 . . . . . . . . . . . 1 1 Melee Attacks 370 | . 15 15 5 . . 24 73 10 4 17 23 9 54 26 6 1 1 14 . . . . . . . . . . . . . 4 27 27 15 Impact 30 | . 15 15 . . . . . . . . . . . . . . . . . . . . . . . . . . . . . . . . . Slashing 336 | . . . 5 . . 24 73 10 4 17 23 9 54 25 6 1 1 14 . . . . . . . . . . . . . 1 27 27 15 Piercing 4 | . . . . . . . . . . . . . . 1 . . . . . . . . . . . . . . . . . 3 . . . Sneak Attacks 68 | . 4 8 4 . . 4 11 1 1 . 1 1 3 13 6 1 . 1 . . . . . . . . . . . . . . 4 3 2 Combat Hostiles 5 | . . . . . . 1 . . . . . . 1 2 . . . . . . . . . . . . . . . . . . 1 . . Follow-up Attacks 3 | . . . . . . . 3 . . . . . . . . . . . . . . . . . . . . . . . . . . . . Damage Inflicted 37605 | 52 815 1238 1761 1323 . 1918 2474 123 160 . 90 155 3000 3797 569 116 30 1939 1012 526 2657 2223 734 . . . . . 174 . 547 . 1142 1773 7257 Guns 2250 | 52 68 121 1103 158 . 64 . . . . . . . 32 . . . . . . . . 652 . . . . . . . . . . . . Cannons 7104 | . . . . . . . . . . . . . 97 . 108 . . 35 431 . . . . . . . . . 174 . 547 . . 631 5081 Explosions 15842 | . 272 520 366 1165 . 1023 349 . . . . . 1727 2120 . . . 1487 581 526 2487 1982 . . . . . . . . . . . . 1237 Melee 11412 | . 475 597 292 . . 809 2125 123 85 . 90 155 1174 1645 461 116 . 417 . . . . . . . . . . . . . . 1142 1142 564 Ramming 54 | . . . . . . 22 . . . . . . 2 . . . 30 . . . . . . . . . . . . . . . . . . Kinetic 812 | . . . . . . . . . . . . . . 32 . . . . . . . . . . . . . . . . . . . . 780 Thermal 4006 | . . 76 351 78 . 171 . . 75 . . . 1026 . . . . 536 431 . . . 541 . . . . . 174 . 547 . . . . Explosive 13474 | . 272 444 103 1087 . 916 349 . . . . . 701 2120 . . . 669 581 526 2487 1982 . . . . . . . . . . . . 1237 Electromagnetic 2048 | 52 68 121 1015 158 . . . . . . . . 97 . 108 . . 317 . . . . 112 . . . . . . . . . . . . Impact 1072 | . 475 597 . . . . . . . . . . . . . . . . . . . . . . . . . . . . . . . . . Slashing 16058 | . . . 292 . . 809 2125 123 85 . 90 155 1174 1645 461 116 . 417 . . 170 241 . . . . . . . . . . 1142 1773 5240 Piercing . | . . . . . . . . . . . . . . . . . . . . . . . . . . . . . . . . . . . . Entropic 81 | . . . . . . . . . . . . . . . . . . . . . . . 81 . . . . . . . . . . . . Highest Corruption 12 | 1 1 12 7 7 7 7 . . . . . . . . . . . . . . . . . . . . . . . . . 4 4 . . Average Corruption 4 | 1 1 2 4 7 7 7 . . . . . . . . . . . . . . . . . . . . . . . . . 4 4 . . Corruption Purged . | . . . . . . . . . . . . . . . . . . . . . . . . . . . . . . . . . . . . Corruption Blocked 4 | . . . . . . . . . . . . . . . . . . . . . . . . . . . . . . . 4 . . . . Effects 120 | . 4 9 21 41 15 25 . . . . . . . . . . . . . . . . . . . . . . . . . 1 4 . . Message Errors 29 | . . 3 3 14 3 5 . . . . . . . . . . . . . . . . . . . . . . . . . 1 . . . Matter Fused 30 | . 2 2 4 9 3 8 . . . . . . . . . . . . . . . . . . . . . . . . . . 2 . . Heat Flow Errors 16 | . 1 1 3 5 2 3 . . . . . . . . . . . . . . . . . . . . . . . . . . 1 . . Energy Discharges 13 | . . . 3 3 5 2 . . . . . . . . . . . . . . . . . . . . . . . . . . . . . Parts Rejected 1 | . . . 1 . . . . . . . . . . . . . . . . . . . . . . . . . . . . . . . . Data Loss (minor) 16 | . . 2 2 6 2 4 . . . . . . . . . . . . . . . . . . . . . . . . . . . . . Data Loss (major) 6 | . . 1 2 2 . 1 . . . . . . . . . . . . . . . . . . . . . . . . . . . . . Misfires 4 | . . . 1 2 . 1 . . . . . . . . . . . . . . . . . . . . . . . . . . . . . Alerts 5 | . 1 . 2 . . 1 . . . . . . . . . . . . . . . . . . . . . . . . . . 1 . . Overload Shots . | . . . . . . . . . . . . . . . . . . . . . . . . . . . . . . . . . . . . Overflow Damage 2624 | . 178 289 75 152 . 77 211 . 1 . . 44 166 309 47 . 8 . 99 . 11 64 . . . . . . . . 37 . 461 329 66 Projectiles 198 | . . . . . . . . . 1 . . . 16 . . . . . 99 . . . . . . . . . . . 37 . . . 45 Explosions 406 | . . 14 . 152 . . 16 . . . . . 100 48 . . . . . . 11 64 . . . . . . . . . . . . 1 Melee 2020 | . 178 275 75 . . 77 195 . . . . 44 50 261 47 . 8 . . . . . . . . . . . . . . . 461 329 20 Knockbacks 18 | . 4 5 . . . . . . . . . . . . . . . . . . . . . . . . . . . . . . . . 9 Impact 9 | . 4 5 . . . . . . . . . . . . . . . . . . . . . . . . . . . . . . . . . Kinetic 9 | . . . . . . . . . . . . . . . . . . . . . . . . . . . . . . . . . . . 9 Secondary . | . . . . . . . . . . . . . . . . . . . . . . . . . . . . . . . . . . . . Self-Inflicted Damage 635 | . . 118 167 52 . 134 . . . . . . 1 . . . 15 . 16 100 . 32 . . . . . . . . . . . . . Shots 20 | . . 4 4 2 . 4 . . . . . . . . . . . . 1 4 . 1 . . . . . . . . . . . . . Rammed 4 | . . . . 1 . 1 . . . . . . 1 . . . 1 . . . . . . . . . . . . . . . . . . Targets Rammed 5 | . . . . 1 . 2 . . . . . . 1 . . . 1 . . . . . . . . . . . . . . . . . . Kicked . | . . . . . . . . . . . . . . . . . . . . . . . . . . . . . . . . . . . . Crushed 1 | . . . . . . 1 . . . . . . . . . . . . . . . . . . . . . . . . . . . . . Highest Temperature 479 | . 227 130 479 273 210 255 7 16 . 3 3 . 144 5 132 . . 248 210 105 113 66 312 99 94 88 99 296 283 154 303 . 201 178 178 Average Temperature 68 | . 114 45 66 84 91 105 4 16 . 1 1 . 45 3 68 . . 78 36 34 28 19 71 34 26 32 27 79 108 53 95 . 91 94 83 Received Heat Transfer 1625 | . 36 72 159 . . 216 306 33 . . . 18 63 84 . . 12 156 36 48 . 48 72 9 . . . . 18 . 27 . 36 78 98 Effects 8 | . . . 1 1 . . . . . . . . . . . . . . . . . . 2 . . . . . 1 . . . 3 . . Energy Bleed 1 | . . . . 1 . . . . . . . . . . . . . . . . . . . . . . . . . . . . . . . Interference 6 | . . . . . . . . . . . . . . . . . . . . . . . 2 . . . . . 1 . . . 3 . . Damage (minor) 1 | . . . 1 . . . . . . . . . . . . . . . . . . . . . . . . . . . . . . . . Siege Activations 1 | . . . . . . . . . . . . . . . . . . . . . . . . . . . . . . . . . . . 1 Total Turns 27 | . . . . . . . . . . . . . . . . . . . . . . . . . . . . . . . . . . . 27 Longest Duration 27 | . . . . . . . . . . . . . . . . . . . . . . . . . . . . . . . . . . . 27 Robots Corrupted 3 | . 1 . 1 . . . . . . . . . . . . . . 1 . . . . . . . . . . . . . . . . . Combat Hostiles 3 | . 1 . 1 . . . . . . . . . . . . . . 1 . . . . . . . . . . . . . . . . . Parts Fried 37 | . 10 16 5 . . . . . . . . . . . 1 . . 1 . . . . 4 . . . . . . . . . . . . Impact Corruptions 23 | . 6 16 . . . . . . . . . . . . . . 1 . . . . . . . . . . . . . . . . . . Robots Melted 1 | . . . . . . . . . . . . . . . . . . . . . . . 1 . . . . . . . . . . . . Combat Hostiles . | . . . . . . . . . . . . . . . . . . . . . . . . . . . . . . . . . . . . Parts Melted 8 | . . . 2 . . . . . . . . . . 1 . . . . 1 . . . 4 . . . . . . . . . . . . Heat Transferred 4570 | . . 50 696 50 . 261 . . 259 . . . 750 . . . . 350 600 . . . 888 . . . . . 148 . 518 . . . . Parts Sabotaged . | . . . . . . . . . . . . . . . . . . . . . . . . . . . . . . . . . . . . Parts Stolen . | . . . . . . . . . . . . . . . . . . . . . . . . . . . . . . . . . . . . Parts Stripped . | . . . . . . . . . . . . . . . . . . . . . . . . . . . . . . . . . . . . Power Chain Reactions 17 | . . 1 5 1 . . . . . . . . 2 . . . . 8 . . . . . . . . . . . . . . . . . Missiles Intercepted . | . . . . . . . . . . . . . . . . . . . . . . . . . . . . . . . . . . . . Alert | -11 -10 -10 -9 -9 -9 -8 -8 -7 -7 -7 -7 -6 -6 -6 -6 -6 -6 -5 -5 -5 -5 -4 -4 -4 -4 -4 -3 -3 -3 -3 -2 -2 -2 -1 -1 ------- Run | Scr Mat Min Mat Min Exi Min Mat Fac Low Low Dat Pro Fac Ext Cet Arc Hub Fac Upp Upp War Pro Fac Upp Upp Zhi Pro Res Arm Lab Res Qua Sec Acc Com Peak Influence 2357 | 10 436 451 737 708 . 166 300 248 . . . . 708 1211 719 337 302 1146 . . . . 244 . . . . 54 235 . 155 1720 2357 1458 750 Initial 1413 | . 6 106 97 238 . . 7 114 . . . . 18 344 593 287 117 137 . . . . 31 . . . . . 28 . . 64 1100 1413 633 Average 344 | 2 231 278 443 582 . 54 94 201 . . . . 235 523 703 312 120 324 . . . . 122 . . . . 21 88 . 48 1632 1936 922 457 Maximum Alert Level 5 | . 2 2 3 3 . . 1 1 . . . . 3 4 3 1 1 4 . . . . 1 . . . . . 1 . . 5 5 4 3 Low Security (%) 45 | 100 29 19 16 . . 100 77 28 . . . . 70 4 . . 67 70 . . . . 78 . . . . 100 94 . 100 . . . 31 Level 1 22 | . 50 64 21 10 . . 22 71 . . . . 7 60 . 100 32 3 . . . . 21 . . . . . 5 . . . . . 30 Level 2 17 | . 20 15 55 65 . . . . . . . . 18 8 18 . . 8 . . . . . . . . . . . . . . . . 32 Level 3 9 | . . . 6 24 . . . . . . . . 3 18 81 . . 11 . . . . . . . . . . . . . . . 87 5 Level 4 1 | . . . . . . . . . . . . . . 7 . . . 6 . . . . . . . . . . . . . . . 12 . Level 5 . | . . . . . . . . . . . . . . . . . . . . . . . . . . . . . . . . . . . . High Security . | . . . . . . . . . . . . . . . . . . . . . . . . . . . . . . . . . . . . Max Security 2 | . . . . . . . . . . . . . . . . . . . . . . . . . . . . . . . . 99 99 . . Squads Dispatched 74 | . 1 . 4 1 . . 3 1 . . . . 11 2 . . 4 3 . . . . 4 . . . . 1 2 . 1 7 14 14 1 Investigation 19 | . . . 3 1 . . . . . . . . 3 . . . 2 1 . . . . 2 . . . . 1 2 . . . . 4 . Extermination 4 | . . . . . . . . . . . . . 2 . . . . . . . . . . . . . . . . . . . . 2 . Reinforcement 22 | . 1 . 1 . . . 3 1 . . . . 3 2 . . 2 1 . . . . 2 . . . . . . . . . 1 4 1 Assault 22 | . . . . . . . . . . . . . . . . . . 1 . . . . . . . . . . . . . 7 12 2 . Garrison 3 | . . . . . . . . . . . . . 3 . . . . . . . . . . . . . . . . . . . . . . Intercept 4 | . . . . . . . . . . . . . . . . . . . . . . . . . . . . . . . 1 . 1 2 . Searches Triggered . | . . . . . . . . . . . . . . . . . . . . . . . . . . . . . . . . . . . . Construction Impeded 2 | . . . . . . . 1 . . . . . . 1 . . . . . . . . . . . . . . . . . . . . . Haulers Reinforced 3 | . . . . . . . . . . . . . 2 . . . . 1 . . . . . . . . . . . . . . . . . Active Scanning Responses . | . . . . . . . . . . . . . . . . . . . . . . . . . . . . . . . . . . . . Cargo Convoy Interrupts 1 | . . . . . . . . . . . . . . . . . . 1 . . . . . . . . . . . . . . . . . Stealth | -11 -10 -10 -9 -9 -9 -8 -8 -7 -7 -7 -7 -6 -6 -6 -6 -6 -6 -5 -5 -5 -5 -4 -4 -4 -4 -4 -3 -3 -3 -3 -2 -2 -2 -1 -1 --------- Run | Scr Mat Min Mat Min Exi Min Mat Fac Low Low Dat Pro Fac Ext Cet Arc Hub Fac Upp Upp War Pro Fac Upp Upp Zhi Pro Res Arm Lab Res Qua Sec Acc Com Distress Signals 34 | . 2 . 3 . . . 3 . . . . . 1 2 1 . 2 2 . . . . 1 . . . . 1 . . 6 1 2 2 5 Communications Jammed 100 | . . . . . . . . . . . . . . 78 17 . . 1 . . . . 1 . . . . . 3 . . . . . . Distress Signals 100 | . . . . . . . . . . . . . . 78 17 . . 1 . . . . 1 . . . . . 3 . . . . . . Times Spotted 453 | . 16 16 30 15 . 10 19 8 . 1 4 2 19 24 5 . 10 31 8 4 29 6 16 1 . . 4 5 5 . 9 8 39 64 45 Peak Tracking Total 15 | . 3 8 7 5 . 4 5 5 . 1 4 1 6 8 5 . 8 11 4 3 12 4 4 1 . . 4 3 3 . 6 11 14 9 15 Tactical Retreats 41 | . 3 1 1 . . 2 1 3 . . . 1 6 1 . . 1 10 1 . 1 . 3 . . . . . . . 2 1 1 . 2 Traps | -11 -10 -10 -9 -9 -9 -8 -8 -7 -7 -7 -7 -6 -6 -6 -6 -6 -6 -5 -5 -5 -5 -4 -4 -4 -4 -4 -3 -3 -3 -3 -2 -2 -2 -1 -1 ------- Run | Scr Mat Min Mat Min Exi Min Mat Fac Low Low Dat Pro Fac Ext Cet Arc Hub Fac Upp Upp War Pro Fac Upp Upp Zhi Pro Res Arm Lab Res Qua Sec Acc Com Traps Triggered 13 | . . 1 3 . . . . . . . . . . 2 . . . 1 . . . . 1 . . . . . 2 . . 2 . 1 . Indirectly . | . . . . . . . . . . . . . . . . . . . . . . . . . . . . . . . . . . . . Trap Hack Attempts . | . . . . . . . . . . . . . . . . . . . . . . . . . . . . . . . . . . . . Triggered . | . . . . . . . . . . . . . . . . . . . . . . . . . . . . . . . . . . . . Disarmed 9 | . . . . . . . . . . . . . . 4 . . . 5 . . . . . . . . . . . . . . . . . Reprogrammed 53 | . . . . . . . . . . . . . 20 . . . . 2 . . . . 12 . . . . 6 13 . . . . . . Reused 16 | . . . . . . . . . . . . . 4 . . . . 2 . 2 . . 1 . . . . . 7 . . . . . . Traps Extracted 10 | . . . . . . . . . 1 . . 1 . . . . . . 5 1 2 . . . . . . . . . . . . . . Installed 8 | . . . . . . . . . . . . 1 . . . . . 4 . 3 . . . . . . . . . . . . . . . Triggered 26 | . . . . . . . . . . . . . 4 . . . . 3 1 2 8 . 1 . . . . . 7 . . . . . . Most Traps Carried 7 | . . . . . . . . . 3 3 3 5 5 5 5 5 5 5 7 7 6 . . . . . . . . . . . . . . Machines | -11 -10 -10 -9 -9 -9 -8 -8 -7 -7 -7 -7 -6 -6 -6 -6 -6 -6 -5 -5 -5 -5 -4 -4 -4 -4 -4 -3 -3 -3 -3 -2 -2 -2 -1 -1 ---------- Run | Scr Mat Min Mat Min Exi Min Mat Fac Low Low Dat Pro Fac Ext Cet Arc Hub Fac Upp Upp War Pro Fac Upp Upp Zhi Pro Res Arm Lab Res Qua Sec Acc Com Machines Disabled 81 | . 1 1 2 4 . 4 1 . . . 1 . 22 2 . . 2 13 1 . 1 . 1 1 . . . . 3 1 3 4 9 2 2 Max in Single Turn 9 | . 1 1 1 1 . 4 1 . . . 1 . 9 . . . . 4 1 . 1 . 1 1 . . . . 1 1 1 1 1 1 1 Garrison Access 8 | . . . . . . . . 1 . . . . 1 . . . . . . . . . 2 . . . . . . . 1 1 . 2 . Network Hub 1 | . . . . . . . . . . . . . . . . . 1 . . . . . . . . . . . . . . . . . . Machines Sabotaged 1 | . . . . . . . . . . . . . . . . . 1 . . . . . . . . . . . . . . . . . . Garrisons Compromised . | . . . . . . . . . . . . . . . . . . . . . . . . . . . . . . . . . . . . Overloaded Fab Kills 4 | . . . . . . . . . . . . . 4 . . . . . . . . . . . . . . . . . . . . . . Hacking | -11 -10 -10 -9 -9 -9 -8 -8 -7 -7 -7 -7 -6 -6 -6 -6 -6 -6 -5 -5 -5 -5 -4 -4 -4 -4 -4 -3 -3 -3 -3 -2 -2 -2 -1 -1 --------- Run | Scr Mat Min Mat Min Exi Min Mat Fac Low Low Dat Pro Fac Ext Cet Arc Hub Fac Upp Upp War Pro Fac Upp Upp Zhi Pro Res Arm Lab Res Qua Sec Acc Com Machines Accessed 141 | . 4 1 4 1 2 1 8 5 . . 4 . 19 12 1 . 6 4 1 2 7 1 12 1 . 7 . 3 11 . 1 . . 13 10 Terminals 89 | . 4 . 2 . . 1 6 3 . . . . 14 12 1 . 6 4 . . . 1 9 1 . . . 2 6 . 1 . . 8 8 Fabricators 10 | . . . . . . . . . . . . . 2 . . . . . . . . . 1 . . . . 1 4 . . . . 2 . Repair Stations 7 | . . . . . . . 1 1 . . . . 1 . . . . . . . . . . . . . . . 1 . . . . 1 2 Recycling Units 2 | . . . 1 . . . 1 . . . . . . . . . . . . . . . . . . . . . . . . . . . . Scanalyzers 2 | . . . 1 . . . . . . . . . 1 . . . . . . . . . . . . . . . . . . . . . . Garrison Access 6 | . . . . . . . . 1 . . . . 1 . . . . . . . . . 2 . . . . . . . . . . 2 . Total Hacks 554 | . 11 1 6 1 2 2 19 13 . . 30 . 79 27 1 . 23 37 1 4 10 1 71 1 . 46 . 18 46 . 7 . . 61 36 Successful 410 | . 4 1 3 1 2 1 6 6 . . 30 . 63 22 1 . 20 30 1 4 10 1 41 1 . 46 . 10 37 . 5 . . 41 23 Failed 138 | . 6 . 3 . . 1 13 7 . . . . 15 5 . . 2 6 . . . . 29 . . . . 7 9 . 2 . . 20 13 Catastrophic 18 | . 2 . 2 . . . 2 1 . . . . 1 . . . . . . . . . 2 . . . . 2 1 . . . . . 5 Database Lockouts 6 | . 1 . . . . . . . . . . . 1 . . . 1 1 . . . . 1 . . . . 1 . . . . . . . Manual 246 | . 8 . 4 . 1 1 14 6 . . . . 35 7 1 . 20 18 . . 1 . 47 . . . . 12 23 . 4 . . 22 22 Terminals 377 | . 11 . 4 . . 2 16 8 . . . . 59 27 1 . 23 37 . . . 1 56 1 . . . 13 30 . 7 . . 50 31 Fabricators 40 | . . . . . . . . . . . . . 7 . . . . . . . . . 13 . . . . 5 11 . . . . 4 . Repair Stations 21 | . . . . . . . 2 2 . . . . 3 . . . . . . . . . . . . . . . 5 . . . . 4 5 Recycling Units 2 | . . . 1 . . . 1 . . . . . . . . . . . . . . . . . . . . . . . . . . . . Scanalyzers 9 | . . . 1 . . . . . . . . . 8 . . . . . . . . . . . . . . . . . . . . . . Garrison Access 10 | . . . . . . . . 3 . . . . 2 . . . . . . . . . 2 . . . . . . . . . . 3 . Terminal Hacks 299 | . 4 1 1 1 2 1 3 1 . . 30 . 34 19 1 . 11 25 1 4 10 1 28 1 . 46 . 6 20 . 5 . . 27 16 Record 61 | . . . . . 1 . . . . . 11 . . . . . . . 1 3 9 1 . 1 . 34 . . . . . . . . . Part Schematic 31 | . . . . . . . . . . . 10 . 3 1 . . . 5 . . . . . . . 4 . 1 2 . . . . 5 . Robot Schematic 8 | . . . . . . . . . . . 6 . 1 . . . . . . . . . 1 . . . . . . . . . . . . Robot Analysis 16 | . 2 . . . . . . . . . . . . 1 . . 1 2 . . . . 2 . . 4 . . . . . . . 4 . Prototype ID Bank 18 | . . . . . . . 2 . . . 3 . 5 . . . 1 1 . . . . 1 . . 4 . 1 . . . . . . . Open Door 17 | . . 1 . 1 . . . . . . . . 1 9 1 . . . . 1 1 . . . . . . . 1 . . . . 1 . Level Access Points 3 | . . . . . . . . . . . . . . . . . 1 . . . . . 1 . . . . . . . 1 . . . . Branch Access Points 9 | . 1 . . . . . . 1 . . . . 1 1 . . . 1 . . . . 1 . . . . 1 . . 1 . . 1 . Machine Index 5 | . . . . . . . . . . . . . . 1 . . 1 1 . . . . . . . . . . . . . . . 1 1 Terminal Index 5 | . . . . . . . 1 . . . . . . 1 . . . . . . . . 1 . . . . . 2 . . . . . . Fabricator Index 4 | . . . . . . . . . . . . . . . . . . . . . . . 1 . . . . . 1 . . . . 1 1 Repair Station Index 1 | . . . . . . . . . . . . . . . . . . . . . . . . . . . . . . . . . . 1 . Scanalyzer Index 2 | . . . . . . . . . . . . . 1 . . . . . . . . . . . . . . . . . . . . . 1 Garrison Index 2 | . . . . . . . . . . . . . 1 . . . . . . . . . . . . . . . . . 1 . . . . Alert Level 12 | . . . . . . . . . . . . . 2 . . . 1 2 . . . . 2 . . . . . 1 . . . . 3 1 Unreport Threat 17 | . . . . . . . . . . . . . 2 1 . . 1 . . . . . 1 . . . . . 1 . 1 . . 6 4 Locate Traps 18 | . . . . . . . . . . . . . 4 1 . . . 2 . . . . 4 . . . . 1 3 . . . . 1 2 Disarm Traps 3 | . . . . . . . . . . . . . . 1 . . . 2 . . . . . . . . . . . . . . . . . Reprogram Traps 13 | . . . . . . . . . . . . . 5 . . . . 1 . . . . 3 . . . . 1 3 . . . . . . Patrol Status 1 | . . . . . . . . . . . . . . 1 . . . . . . . . . . . . . . . . . . . . . Transport Status 2 | . . . . . . . . . . . . . . . . . . . . . . . 1 . . . . . . . . . . . 1 Investigation Status 1 | . . . . . . . . . . . . . . . . . . . . . . . . . . . . . 1 . . . . . . Reinforcement Status 1 | . . . . . . . . . . . . . . . . . . 1 . . . . . . . . . . . . . . . . . Recall Investigation 6 | . . . . . . . . . . . . . 2 . . . . 1 . . . . . . . . . . 2 . . . . 1 . Recall Extermination 2 | . . . . . . . . . . . . . 2 . . . . . . . . . . . . . . . . . . . . . . Recall Reinforcements 4 | . . . . . . . . . . . . . . . . . 1 1 . . . . 2 . . . . . . . . . . . . Recall Assault 2 | . . . . . . . . . . . . . . . . . . 2 . . . . . . . . . . . . . . . . . Hauler Manifests 8 | . . . 1 . . . . . . . . . 1 1 . . 1 2 . . . . 2 . . . . . . . . . . . . Registered Components 3 | . 1 . . . . . . . . . . . 1 . . . . . . . . . 1 . . . . . . . . . . . . Registered Prototypes 4 | . . . . . . . . . . . . . 1 . . . . . . . . . . . . . . 1 1 . . . . . 1 Zone Layout 18 | . . . . . . 1 . . . . . . 1 . . . 3 1 . . . . 4 . . . . . 2 . 1 . . 2 3 EX-Prototype ID Bank 1 | . . . . . 1 . . . . . . . . . . . . . . . . . . . . . . . . . . . . . . Disengage Seal 1 | . . . . . . . . . . . . . . . . . . . . . . . . . . . . . . . . . . . 1 Fabricator Hacks 16 | . . . . . . . . . . . . . 3 . . . . . . . . . 4 . . . . 1 4 . . . . 4 . Network Status 4 | . . . . . . . . . . . . . 1 . . . . . . . . . 2 . . . . 1 . . . . . . . Load Schematic 6 | . . . . . . . . . . . . . 1 . . . . . . . . . 1 . . . . . 2 . . . . 2 . Build 6 | . . . . . . . . . . . . . 1 . . . . . . . . . 1 . . . . . 2 . . . . 2 . Repair Station Hacks 18 | . . . . . . . 2 2 . . . . 2 . . . . . . . . . . . . . . . 3 . . . . 4 5 Scan Component 8 | . . . . . . . 1 1 . . . . 1 . . . . . . . . . . . . . . . 1 . . . . 2 2 Repair 8 | . . . . . . . 1 1 . . . . 1 . . . . . . . . . . . . . . . 1 . . . . 2 2 Refit 2 | . . . . . . . . . . . . . . . . . . . . . . . . . . . . . 1 . . . . . 1 Recycling Unit Hacks 1 | . . . . . . . 1 . . . . . . . . . . . . . . . . . . . . . . . . . . . . Retrieve Components 1 | . . . . . . . 1 . . . . . . . . . . . . . . . . . . . . . . . . . . . . Scanalyzer 8 | . . . . . . . . . . . . . 8 . . . . . . . . . . . . . . . . . . . . . . Insert Component 4 | . . . . . . . . . . . . . 4 . . . . . . . . . . . . . . . . . . . . . . Analyze 4 | . . . . . . . . . . . . . 4 . . . . . . . . . . . . . . . . . . . . . . Garrison Access Hacks 6 | . . . . . . . . 1 . . . . 1 . . . . . . . . . 2 . . . . . . . . . . 2 . Seal Access 6 | . . . . . . . . 1 . . . . 1 . . . . . . . . . 2 . . . . . . . . . . 2 . Unauthorized Hacks 62 | . . . 2 . . . . 2 . . . . 15 3 . . 9 5 . . . . 7 . . . . 3 10 . . . . 4 2 Terminals 46 | . . . . . . . . 2 . . . . 12 3 . . 9 5 . . . . 3 . . . . 1 5 . . . . 4 2 Track 3 | . . . . . . . . . . . . . . . . . 2 . . . . . . . . . . . . . . . . . 1 Assimilate 12 | . . . . . . . . 1 . . . . 3 1 . . . 1 . . . . 1 . . . . 1 2 . . . . 2 . Botnet 12 | . . . . . . . . 1 . . . . 3 1 . . 2 1 . . . . . . . . . . 1 . . . . 2 1 Detonate 9 | . . . . . . . . . . . . . 4 . . . 2 1 . . . . 1 . . . . . 1 . . . . . . Disrupt 5 | . . . . . . . . . . . . . 1 1 . . . 1 . . . . 1 . . . . . 1 . . . . . . Operators 2 | . . . . . . . . . . . . . . . . . 1 1 . . . . . . . . . . . . . . . . . Sabotage 3 | . . . . . . . . . . . . . 1 . . . 2 . . . . . . . . . . . . . . . . . . Fabricators 14 | . . . . . . . . . . . . . 3 . . . . . . . . . 4 . . . . 2 5 . . . . . . Report 1 | . . . . . . . . . . . . . . . . . . . . . . . 1 . . . . . . . . . . . . Prioritize 4 | . . . . . . . . . . . . . 2 . . . . . . . . . 1 . . . . . 1 . . . . . . Fabnet 6 | . . . . . . . . . . . . . . . . . . . . . . . 1 . . . . 1 4 . . . . . . Haulers 1 | . . . . . . . . . . . . . . . . . . . . . . . 1 . . . . . . . . . . . . Overload 1 | . . . . . . . . . . . . . 1 . . . . . . . . . . . . . . . . . . . . . . Recompile 1 | . . . . . . . . . . . . . . . . . . . . . . . . . . . . 1 . . . . . . . Repair Stations . | . . . . . . . . . . . . . . . . . . . . . . . . . . . . . . . . . . . . Recycling Units 1 | . . . 1 . . . . . . . . . . . . . . . . . . . . . . . . . . . . . . . . Tunnel 1 | . . . 1 . . . . . . . . . . . . . . . . . . . . . . . . . . . . . . . . Scanalyzers 1 | . . . 1 . . . . . . . . . . . . . . . . . . . . . . . . . . . . . . . . Extract 1 | . . . 1 . . . . . . . . . . . . . . . . . . . . . . . . . . . . . . . . Garrison Access . | . . . . . . . . . . . . . . . . . . . . . . . . . . . . . . . . . . . . Data Cores Recovered . | . . . . . . . . . . . . . . . . . . . . . . . . . . . . . . . . . . . . Used . | . . . . . . . . . . . . . . . . . . . . . . . . . . . . . . . . . . . . Hacking Detections 80 | . 4 . 2 . . . 7 5 . . . . 15 5 . . 4 4 . . . . 7 . . . . 2 8 . . . . 9 8 Full Trace Events 10 | . . . 1 . . . . . . . . . 1 . . . . 1 . . . . 1 . . . . . 2 . . . . 4 . Feedback Events . | . . . . . . . . . . . . . . . . . . . . . . . . . . . . . . . . . . . . Feedback Blocked . | . . . . . . . . . . . . . . . . . . . . . . . . . . . . . . . . . . . . Robot Schematics Acquired 10 | . . . . . . . . . . . 6 . 1 . . . . . . . . . 1 . . . . . . . . . 2 . . Robots Built . | . . . . . . . . . . . . . . . . . . . . . . . . . . . . . . . . . . . . Authchips . | . . . . . . . . . . . . . . . . . . . . . . . . . . . . . . . . . . . . Time . | . . . . . . . . . . . . . . . . . . . . . . . . . . . . . . . . . . . . Total Robot Build Rating . | . . . . . . . . . . . . . . . . . . . . . . . . . . . . . . . . . . . . Part Schematics Acquired 44 | . . . 5 . . . . . . . 10 . 4 1 . . . 5 . . . . . . . 4 . 1 2 . . . 7 5 . Parts Built 6 | . . . . . . . . . . . . . 1 . . . . . . . . . 2 . . . . . 1 . . . . 2 . Authchips . | . . . . . . . . . . . . . . . . . . . . . . . . . . . . . . . . . . . . Time 379 | . . . . . . . . . . . . . 38 . . . . . . . . . 69 . . . . . 148 . . . . 124 . Total Part Build Rating 46 | . . . . . . . . . . . . . 5 . . . . . . . . . 18 . . . . . 9 . . . . 14 . Parts Repaired 7 | . . . . . . . 1 1 . . . . 1 . . . . . . . . . . . . . . . 1 . . . . 1 2 Time 366 | . . . . . . . 38 51 . . . . 136 . . . . . . . . . . . . . . . 8 . . . . 65 68 Parts Recycled . | . . . . . . . . . . . . . . . . . . . . . . . . . . . . . . . . . . . . Recycled Matter . | . . . . . . . . . . . . . . . . . . . . . . . . . . . . . . . . . . . . Retrieved Matter . | . . . . . . . . . . . . . . . . . . . . . . . . . . . . . . . . . . . . Retrieved Components 9 | . . . . . . . 9 . . . . . . . . . . . . . . . . . . . . . . . . . . . . Parts Scanalyzed 1 | . . . . . . . . . . . . . 1 . . . . . . . . . . . . . . . . . . . . . . Part Schematics Acquired 1 | . . . . . . . . . . . . . 1 . . . . . . . . . . . . . . . . . . . . . . Parts Damaged 1 | . . . . . . . . . . . . . 1 . . . . . . . . . . . . . . . . . . . . . . Bothacking | -11 -10 -10 -9 -9 -9 -8 -8 -7 -7 -7 -7 -6 -6 -6 -6 -6 -6 -5 -5 -5 -5 -4 -4 -4 -4 -4 -3 -3 -3 -3 -2 -2 -2 -1 -1 ------------ Run | Scr Mat Min Mat Min Exi Min Mat Fac Low Low Dat Pro Fac Ext Cet Arc Hub Fac Upp Upp War Pro Fac Upp Upp Zhi Pro Res Arm Lab Res Qua Sec Acc Com Used RIF Installer . | . . . . . . . . . . . . . . . . . . . . . . . . . . . . . . . . . . . . Robots Hacked 24 | . . . . . . . . . . . . . . . . . . . . . . . . . . . . . . . 10 . 1 . 13 Non-combat 2 | . . . . . . . . . . . . . . . . . . . . . . . . . . . . . . . 2 . . . . Combat 22 | . . . . . . . . . . . . . . . . . . . . . . . . . . . . . . . 8 . 1 . 13 Robot Hacks Applied 6 | . . . . . . . . . . . . . . . . . . . . . . . . . . . . . . . 6 . . . . parse_system 6 | . . . . . . . . . . . . . . . . . . . . . . . . . . . . . . . 6 . . . . Relay Couplers Released 3 | . . . . . . . . . . . . . . . . . . . . . . . . . . . . . . . . 3 . . . Machine Destruction 3 | . . . . . . . . . . . . . . . . . . . . . . . . . . . . . . . . 3 . . . Fabnet Peak Effective % 7 | . . . . . . . . . . . . . . . . . . . . . . . . . . . 3 3 3 3 7 7 7 2 2 Autooverrided 18 | . . . . . . . . . . . . . . . . . . . . . . . . . . . . . . . 4 . 1 . 13 Robots Rewired 13 | . . . . . . . . . . . . . . 9 . . . . . . 4 . . . . . . . . . . . . . . Allies Hacked 2 | . . . . . . . . . . . . . . . . . . . . . . . . . . . . . . . . . . . 2 Hacks Repelled . | . . . . . . . . . . . . . . . . . . . . . . . . . . . . . . . . . . . . Allies | -11 -10 -10 -9 -9 -9 -8 -8 -7 -7 -7 -7 -6 -6 -6 -6 -6 -6 -5 -5 -5 -5 -4 -4 -4 -4 -4 -3 -3 -3 -3 -2 -2 -2 -1 -1 -------- Run | Scr Mat Min Mat Min Exi Min Mat Fac Low Low Dat Pro Fac Ext Cet Arc Hub Fac Upp Upp War Pro Fac Upp Upp Zhi Pro Res Arm Lab Res Qua Sec Acc Com Total Allies 73 | . . 3 . . . . . 1 . . . . 3 24 5 . . 1 . 2 4 . 1 . . . . 1 2 . 4 . 1 2 19 Largest Group 14 | . . 3 3 . . . . 1 . . . . 2 14 14 13 7 1 . 2 4 . 1 . . . . 1 2 . 3 . 1 1 6 Highest-Rated Group 726 | . . 40 40 . . . . 26 . . . . 52 476 726 583 450 26 . 56 199 . 10 . . . . 10 71 . 207 . 64 45 149 Highest-Rated Ally 159 | . . 16 16 . . . . 26 . . . . 26 159 159 96 96 26 . 31 68 . 10 . . . . 10 45 . 69 . 64 45 89 Total Orders 10 | . . . . . . . . . . . . . 1 . . . . . . . 2 . 3 . . . . 1 3 . . . . . . STAY 8 | . . . . . . . . . . . . . 1 . . . . . . . 2 . 2 . . . . 1 2 . . . . . . FOLLOW 2 | . . . . . . . . . . . . . . . . . . . . . . . 1 . . . . . 1 . . . . . . Ally Attacks 285 | . . 4 23 . . . . . . . . . . 111 34 29 29 . . 6 11 . . . . . . . . . 14 . 2 . 22 Total Damage 8477 | . . 15 281 . . . . . . . . . . 2378 1179 1016 1628 . . 106 557 . . . . . . . . . 567 . 58 . 692 Kills 49 | . . 1 5 . . . . . . . . . . 20 4 4 6 . . 2 3 . . . . . . . . . 2 . 1 . 1 Allies Corrupted 4 | . . . . . . . . . . . . . . . . . 3 . . . . . . . . . . . . . . . . . 1 Allies Melted . | . . . . . . . . . . . . . . . . . . . . . . . . . . . . . . . . . . . . Intel | -11 -10 -10 -9 -9 -9 -8 -8 -7 -7 -7 -7 -6 -6 -6 -6 -6 -6 -5 -5 -5 -5 -4 -4 -4 -4 -4 -3 -3 -3 -3 -2 -2 -2 -1 -1 ------- Run | Scr Mat Min Mat Min Exi Min Mat Fac Low Low Dat Pro Fac Ext Cet Arc Hub Fac Upp Upp War Pro Fac Upp Upp Zhi Pro Res Arm Lab Res Qua Sec Acc Com Robot Analysis Total 16 | . 2 . . . . . . . . . . . . 1 . . 1 2 . . . . 2 . . 4 . . . . . . . 4 . Derelict Logs Recovered 10 | . . 1 . 1 . . . . 1 1 . 2 . . . . . . . . . 2 . 1 1 . . . . . . . . . . Drone Launches . | . . . . . . . . . . . . . . . . . . . . . . . . . . . . . . . . . . . . Drone Recoveries . | . . . . . . . . . . . . . . . . . . . . . . . . . . . . . . . . . . . . Exploration | -11 -10 -10 -9 -9 -9 -8 -8 -7 -7 -7 -7 -6 -6 -6 -6 -6 -6 -5 -5 -5 -5 -4 -4 -4 -4 -4 -3 -3 -3 -3 -2 -2 -2 -1 -1 ------------- Run | Scr Mat Min Mat Min Exi Min Mat Fac Low Low Dat Pro Fac Ext Cet Arc Hub Fac Upp Upp War Pro Fac Upp Upp Zhi Pro Res Arm Lab Res Qua Sec Acc Com Turns Passed 17442 | 98 526 934 858 1220 527 852 985 343 307 339 105 492 930 807 205 93 156 711 1051 263 900 818 915 175 112 49 306 109 428 191 458 113 206 410 450 Spaces Moved 21824 | 49 274 633 526 622 264 289 593 710 618 705 125 632 1771 1126 139 63 314 1078 773 530 1065 975 1685 424 223 156 250 316 612 208 657 461 825 1291 842 Core 55 | 3 . . . . . . . . . . . 49 . . . . . 1 . . 1 . 1 . . . . . . . . . . . . Treads 958 | 46 274 203 . . . 228 207 . . . . . . . . . . . . . . . . . . . . . . . . . . . . Legs 35 | . . . . . . . . . . . . . . . . . . . . . . . . . . . . . . . . . . . 35 Wheels 1903 | . . 430 526 622 264 61 . . . . . . . . . . . . . . . . . . . . . . . . . . . . . Hover . | . . . . . . . . . . . . . . . . . . . . . . . . . . . . . . . . . . . . Flight 18794 | . . . . . . . 386 710 618 705 125 583 1771 1126 139 63 314 1077 773 530 1064 975 1684 424 223 156 250 316 612 208 657 461 811 1271 762 Fastest Speed 5 | 50 160 95 110 120 195 210 34 27 27 27 27 27 26 25 28 28 25 5 20 20 19 19 7 13 7 19 7 7 7 15 7 16 8 8 16 Average Speed 45 | 153 160 124 117 187 195 233 107 30 27 27 27 53 29 27 30 32 31 23 22 20 31 67 22 19 18 19 18 14 20 15 17 16 14 14 21 Slowest Speed 600 | 160 160 200 195 195 210 240 320 101 27 27 27 250 103 355 103 103 103 500 91 20 600 159 550 85 19 19 19 15 153 15 335 17 16 89 120 Overloaded Moves 313 | . . . . . . . . . . . . . . 10 . . 21 35 . . . . 28 9 2 . 8 5 10 . 26 . 117 42 . Propulsion Burnouts . | . . . . . . . . . . . . . . . . . . . . . . . . . . . . . . . . . . . . Robots Hopped 99 | . . . . . . . 3 6 1 1 . . 11 5 . . 12 10 . 1 . 3 17 1 1 . 1 4 2 . 6 3 6 4 1 Cave-ins Triggered . | . . . . . . . . . . . . . . . . . . . . . . . . . . . . . . . . . . . . Teleports 3 | . . . . . . . . . . . . . . . . . . . . . . . . . . . . . 1 1 . . 1 . . Spacefolds 28 | . . . . . . . . . . . . . . . . . . . . . . . . . . . . . . . . . 6 6 16 Exploration Rate (%) 56 | 4 55 97 45 94 63 51 50 26 67 47 80 70 39 95 61 77 39 30 83 61 93 83 36 60 43 62 45 13 36 96 22 61 64 45 35 Regions Visited 35 Branch Regions 25 Pre-discovered Areas 9 | . . . 1 . 1 . . . . 1 1 . . . . . . . . . . 1 . . 1 3 . . . . . . . . . Known Exits Taken 22 | . 1 . 1 . . . 1 1 1 1 1 1 1 1 . . 1 1 1 1 1 1 1 . . . 1 1 . . 1 . 1 1 . Unknown Exits Taken 13 | 1 . 1 . 1 1 1 . . . . . . . . 1 1 . . . . . . . 1 1 1 . . 1 1 . 1 . . . Scrap Searched 21 | . . 1 . 3 . . . . 1 2 . 4 . . . . . . 2 1 . 4 . 2 1 . . . . . . . . . . Spaces Dug 277 | . . . . . . . 6 6 3 17 . 4 41 3 . . 1 8 2 . 22 90 9 . . . 23 . 13 . 4 . 5 14 6 Terrain Destroyed 1415 | . 36 59 28 96 . 115 26 6 3 17 . 4 138 48 . . 1 98 163 94 129 216 9 . . . 23 . 14 . 11 . 7 14 60 Melee 78 | . . . . . . . 6 6 3 17 . 4 11 3 . . 1 4 . . . . . . . . . . . . . . 5 12 6 Projectile 73 | . . . . . . . . . . . . . 12 . . . . 5 2 . 1 4 9 . . . 4 . 14 . 11 . . 2 9 AOE 1259 | . 36 59 28 96 . 115 20 . . . . . 115 45 . . . 89 161 94 128 212 . . . . 19 . . . . . 2 . 40 Terrain Rammed . | . . . . . . . . . . . . . . . . . . . . . . . . . . . . . . . . . . . . Walls Destroyed . | . . . . . . . . . . . . . . . . . . . . . . . . . . . . . . . . . . . . Machines Disabled . | . . . . . . . . . . . . . . . . . . . . . . . . . . . . . . . . . . . . Actions | -11 -10 -10 -9 -9 -9 -8 -8 -7 -7 -7 -7 -6 -6 -6 -6 -6 -6 -5 -5 -5 -5 -4 -4 -4 -4 -4 -3 -3 -3 -3 -2 -2 -2 -1 -1 --------- Run | Scr Mat Min Mat Min Exi Min Mat Fac Low Low Dat Pro Fac Ext Cet Arc Hub Fac Upp Upp War Pro Fac Upp Upp Zhi Pro Res Arm Lab Res Qua Sec Acc Com Total 28297 | 63 324 731 688 656 275 420 845 812 719 832 172 771 2078 1556 286 132 356 1483 1620 677 1612 1119 2143 514 291 176 506 372 890 361 958 496 875 1450 1038 Wait 4977 | . 9 41 25 4 . 86 136 77 74 101 12 122 213 319 111 66 51 350 809 139 482 129 404 84 67 4 252 54 204 140 232 . 9 83 88 Move 21549 | 48 273 632 525 621 263 288 586 698 615 702 124 631 1749 1115 138 62 293 1059 772 527 1064 968 1650 421 220 155 247 307 607 207 645 454 804 1268 811 Hop 91 | . . . . . . . 3 5 1 1 . . 10 5 . . 9 8 . 1 . 3 17 1 1 . 1 4 2 . 5 3 6 4 1 Pick Up 145 | 3 7 8 35 4 1 2 14 4 2 2 3 2 5 5 2 . . 6 2 1 5 1 1 2 1 1 . 2 6 . 3 6 2 1 6 Fast Attach 173 | 6 1 7 9 . . . 5 5 . . . 1 5 4 6 . . 7 . . 16 1 9 . . 5 . 2 4 8 11 2 15 21 23 Attach 110 | . . 1 9 2 3 1 8 5 . . 2 2 4 12 3 1 1 9 5 . 1 1 8 2 . . 2 2 . . 7 1 4 2 12 Detach 95 | . . 2 4 . 2 . 4 2 . . 3 . 3 11 5 1 1 6 5 . 4 1 8 1 1 . 2 . 1 1 8 . 3 7 9 Swap 108 | . 4 5 6 3 1 2 4 3 7 7 3 3 15 1 1 1 . 7 5 2 5 3 7 1 . 3 . . 5 . 2 . . 1 1 Drop 182 | . 4 1 24 2 3 . 10 4 1 2 2 . 5 9 8 . . 6 1 1 19 1 7 1 1 8 . 1 4 2 10 11 3 14 17 Fire 389 | 6 11 19 46 19 2 15 5 . 15 . . . 17 16 6 . . 7 21 3 12 11 32 1 . . 2 . 21 3 35 . 2 7 55 Melee 363 | . 15 15 5 . . 24 70 9 4 17 23 9 51 26 6 1 1 14 . . . . . . . . . . . . . 4 27 27 15 Ram 2 | . . . . 1 . . . . . . . . 1 . . . . . . . . . . . . . . . . . . . . . . Kick . | . . . . . . . . . . . . . . . . . . . . . . . . . . . . . . . . . . . . Crush 2 | . . . . . . 2 . . . . . . . . . . . . . . . . . . . . . . . . . . . . . Escape Stasis 84 | . . . . . . . . . . . . . . 18 . . . . . . . . . . . . . . 36 . . 15 . 15 . Rewire 19 | . . . . . . . . . . . . . . 15 . . . . . . 4 . . . . . . . . . . . . . . Trap 8 | . . . . . . . . . . . . 1 . . . . . 4 . 3 . . . . . . . . . . . . . . . Miscellaneous . | . . . . . . . . . . . . . . . . . . . . . . . . . . . . . . . . . . . . Route ------- -11/Scrapyard -10/Materials -10/Mines (discovered 2 exits: *Mat x2) -9/Materials (discovered 3 exits: *Min / [*Sto x2]) -9/Mines (discovered 3 exits: *Mat x2 / *Exi) -9/Exiles -8/Mines -8/Materials (discovered 2 exits: *Fac x2) -7/Factory (discovered 2 exits: *Low x2) -7/Lower Caves (discovered 2 exits: *Low / *Dat) -7/Lower Caves -7/Data Miner -6/Proximity Caves -6/Factory (discovered 6 exits: *Fac x2 / Low x2 / *Ext x2) -6/Extension (discovered 2 exits: *Fac / *Cet) -6/Cetus -6/Archives (discovered 2 exits: *Fac / *Hub) -6/Hub_04(d) (discovered 4 exits: *Fac x4) -5/Factory (discovered 2 exits: *Upp x2) -5/Upper Caves -5/Upper Caves -5/Warlord -4/Proximity Caves -4/Factory (discovered 6 exits: *Res x4 / *Upp x2) -4/Upper Caves -4/Upper Caves -4/Zhirov -3/Proximity Caves -3/Research (discovered 3 exits: *Arm / Tes x2) -3/Armory (discovered 2 exits: *Res / *Lab) -3/Lab -2/Research (discovered 5 exits: Acc x3 / *Qua x2) -2/Quarantine -2/Section 7 -1/Access -1/Command History --------- Turn | Location | Event 12 | -11/Scrapyard | Discovered new exit (range 16) 99 | -11/Scrapyard | Entered Materials 253 | -10/Materials | Identified exit to Mines 306 | -10/Materials | Build established: Mutant 569 | -10/Materials | Central database locked down 625 | -10/Materials | Entered Mines 692 | -10/Mines | Learned 4 Materials zone layouts 862 | -10/Mines | Discovered new exit (range 5) 895 | -10/Mines | Received a Rocket Launcher from a helpful Derelict 905 | -10/Mines | A weapon hastily lodged in a ceiling crevice suddenly fell to the ground 1039 | -10/Mines | Assembled infested the area 1044 | -10/Mines | Assisted by a Guerilla fighting off Assembled 1234 | -10/Mines | Assisted by bots powering up and referring to "LRC-V3" 1375 | -10/Mines | Discovered new exit (range 7) 1418 | -10/Mines | Met a Derelict who couldn't figure out how to use a Trap Extractor 1457 | -10/Mines | System corruption reached 10% 1559 | -10/Mines | Entered Materials 1559 | -9/Materials | Accompanied by 3 allies 1559 | -9/Materials | Evolved 2 slots: Propulsion x1, Utility x1 1560 | -9/Materials | Identified exit to Mines 1636 | -9/Materials | Discovered new exit (range 13) 1891 | -9/Materials | Discovered new exit (range 2) 2003 | -9/Materials | Lost 3 parts (2n1w) 2059 | -9/Materials | Lost 3 parts (1p1u1w) 2417 | -9/Materials | Entered Mines 2424 | -9/Mines | Met a Derelict bent on vengeance 2538 | -9/Mines | Found a damaged Exp. Sensor Array with a note attached 2541 | -9/Mines | Found Prototype Device 2573 | -9/Mines | Identified Exp. Sensor Array 2597 | -9/Mines | Deemed a non-threat by the Exiles lab entrance 2599 | -9/Mines | Discovered new exit (range 5) 2634 | -9/Mines | Discovered new exit (range 3) 2798 | -9/Mines | Discovered new exit (range 15) 3019 | -9/Mines | Met a Derelict shopkeep closing up shop 3402 | -9/Mines | Learned 8 Materials zone layouts 3637 | -9/Mines | Entered Exiles 3689 | -9/Exiles | Met 8R-AWN 3722 | -9/Exiles | Met EX-HEX 3796 | -9/Exiles | Met EX-DEC 3806 | -9/Exiles | Learned location of Zion (-6) 3837 | -9/Exiles | Met EX-BIN 3865 | -9/Exiles | Aligned with FarCom system 3867 | -9/Exiles | Given EX-Vault access code 3915 | -9/Exiles | Opened EX-Vault 3933 | -9/Exiles | Found Chronowheel 3973 | -9/Exiles | Warned to stay clear of 0b10 Research branches 4137 | -9/Exiles | Discovered new exit (range 11) 4164 | -9/Exiles | Left Exiles lab with Chronowheel 4164 | -9/Exiles | Entered Mines 4628 | -8/Mines | Build established: Scavenger-Mutant 4851 | -8/Mines | Core integrity fell below 50% 5004 | -8/Mines | Discovered new exit (range 4) 5016 | -8/Mines | Entered Materials 5016 | -8/Materials | Evolved 2 slots: Utility x2 5017 | -8/Materials | Identified exit to Factory 5313 | -8/Materials | Build established: Scavenger-Assassin 5455 | -8/Materials | Repaired Lgt. Nuclear Core 5719 | -8/Materials | Lost 5 parts (3n1u1w) 5766 | -8/Materials | Core integrity fell below 50% 6001 | -8/Materials | Entered Factory 6001 | -7/Factory | Evolved 2 slots: Propulsion x2 6059 | -7/Factory | Identified exit to Lower Caves 6263 | -7/Factory | Repaired Imp. Flight Unit 6344 | -7/Factory | Entered Lower Caves 6368 | -7/Lower Caves | Encountered a Warlord checkpoint 6537 | -7/Lower Caves | A Derelict revealed a hidden shortcut to meet someone special 6541 | -7/Lower Caves | Identified exit to Data Miner 6592 | -7/Lower Caves | Learned 12 Factory zone layouts 6624 | -7/Lower Caves | Discovered new exit (range 5) 6625 | -7/Lower Caves | Identified exit to Lower Caves 6640 | -7/Lower Caves | Build established: Scout 6651 | -7/Lower Caves | Entered another Lower Caves area 6811 | -7/Lower Caves | Spotted B-75 Beast 6986 | -7/Lower Caves | Discovered exit to Data Miner (range 16) 6990 | -7/Lower Caves | Entered Data Miner 6990 | -7/Data Miner | Discovered new exit (range 6) 6996 | -7/Data Miner | Met Data Miner 7001 | -7/Data Miner | Learned location of Section 7 (-2) 7001 | -7/Data Miner | Acquired the access code to Warlord's prototype stash 7006 | -7/Data Miner | Received God Mode back door access code from Data Miner 7014 | -7/Data Miner | Activated Chronowheel 7017 | -7/Data Miner | Destroyed Data Miner 7026 | -7/Data Miner | Found Prototype Hackware 7027 | -7/Data Miner | Found Prototype Hackware 7028 | -7/Data Miner | Found Prototype Hackware 7029 | -7/Data Miner | Data Conduit disabled 7094 | -7/Data Miner | Identified exit to Proximity Caves 7095 | -7/Data Miner | Entered Proximity Caves 7120 | -6/Proximity Caves | Learned Factory terminal intel 7180 | -6/Proximity Caves | Learned Factory garrison access intel 7582 | -6/Proximity Caves | Discovered new exit (range 14) 7586 | -6/Proximity Caves | Identified exit to Factory 7587 | -6/Proximity Caves | Entered Factory 7587 | -6/Factory | Evolved 2 slots: Utility x2 7588 | -6/Factory | Identified exit to Factory 7588 | -6/Factory | Identified exit to Lower Caves 7589 | -6/Factory | Loaded intel: 27 terminal locations 7590 | -6/Factory | Loaded intel: 4 garrison access locations 7592 | -6/Factory | Identified Deep Network Scanner 7632 | -6/Factory | Discovered exit to Factory (range 7) 7731 | -6/Factory | Identified Ghost Barrier 7731 | -6/Factory | Identified Quantum Router 8014 | -6/Factory | Identified exit to Extension 8153 | -6/Factory | Found Scatter Rocket Array 8200 | -6/Factory | Repaired Broken Exp. Sensor Array 8237 | -6/Factory | Spotted B-75 Beast 8268 | -6/Factory | Central database locked down 8346 | -6/Factory | Fabricated Cld. Cesium-ion Thruster (x1) 8517 | -6/Factory | Entered Extension 8524 | -6/Extension | Rescued a captive Derelict 8542 | -6/Extension | Rescued a captive Derelict 8542 | -6/Extension | Rescued a captive Derelict 8574 | -6/Extension | Rescued a captive Derelict 8593 | -6/Extension | Identified exit to Cetus 8706 | -6/Extension | Rescued a captive Derelict 8707 | -6/Extension | Rescued a captive Derelict 8817 | -6/Extension | Disrupted transfer network 9019 | -6/Extension | Build established: Hacker-Ninja 9027 | -6/Extension | Spotted B-75 Beast 9041 | -6/Extension | Destroyed B-75 Beast 9075 | -6/Extension | Rescued a captive Derelict 9076 | -6/Extension | Rescued a captive Derelict 9098 | -6/Extension | Rescued a captive Derelict 9099 | -6/Extension | Rescued a captive Derelict 9104 | -6/Extension | Rescued a captive Derelict 9104 | -6/Extension | Rescued a captive Derelict 9124 | -6/Extension | Rescued a captive Derelict 9124 | -6/Extension | Rescued a captive Derelict 9190 | -6/Extension | Rescued A7 9255 | -6/Extension | Discovered exit to Factory (range 10) 9324 | -6/Extension | Entered Cetus 9324 | -6/Cetus | Accompanied by 14 allies (A7) 9329 | -6/Cetus | Acquired a Cetus Manufacturing Module code from A7 9329 | -6/Cetus | Spotted Cetus Guard 9329 | -6/Cetus | Spotted Cetus Guard 9330 | -6/Cetus | Spotted Cetus Guard 9343 | -6/Cetus | Spotted Cetus Guard 9349 | -6/Cetus | Allies destroyed Cetus Guard 9352 | -6/Cetus | Allies destroyed Cetus Guard 9359 | -6/Cetus | Allies destroyed Cetus Guard 9361 | -6/Cetus | Allies destroyed Cetus Guard 9379 | -6/Cetus | Started Cetus Manufacturing Module 9404 | -6/Cetus | Manufactured an Enhanced Grunt 9429 | -6/Cetus | Manufactured an Enhanced Grunt 9449 | -6/Cetus | Escorted A7 to Cetus Mainframe 9452 | -6/Cetus | Discovered new exit (range 16) 9454 | -6/Cetus | Manufactured an Enhanced Grunt 9479 | -6/Cetus | Manufactured an Enhanced Grunt 9479 | -6/Cetus | Found Prototype Protection 9479 | -6/Cetus | Identified Med. Regenerative Plating 9493 | -6/Cetus | Destroyed A7 9494 | -6/Cetus | Extracted ID and sensor layout for unrecognized location from A7's data core 9504 | -6/Cetus | Manufactured an Enhanced Grunt 9529 | -6/Cetus | Entered Archives 9529 | -6/Archives | Accompanied by 13 allies 9574 | -6/Archives | Discovered exit to Factory (range 16) 9587 | -6/Archives | Discovered new exit (range 15) 9622 | -6/Archives | Entered Hub_04(d) 9622 | -6/Hub_04(d) | Accompanied by 7 allies 9671 | -6/Hub_04(d) | Central database locked down 9715 | -6/Hub_04(d) | Network Hub disabled 9778 | -6/Hub_04(d) | Entered Factory 9778 | -5/Factory | Evolved 2 slots: Propulsion x1, Utility x1 10079 | -5/Factory | Identified exit to Upper Caves 10225 | -5/Factory | Spotted B-75 Beast 10256 | -5/Factory | Central database locked down 10360 | -5/Factory | Cargo convoy interrupted 10378 | -5/Factory | First assault squad dispatched 10399 | -5/Factory | Found Prototype Device 10399 | -5/Factory | Identified Adv. Kinecellerator 10489 | -5/Factory | Entered Upper Caves 10780 | -5/Upper Caves | Build established: Hacker-Scout 11420 | -5/Upper Caves | Found Alien Artifact 11443 | -5/Upper Caves | Discovered new exit (range 7) 11445 | -5/Upper Caves | Identified exit to Upper Caves 11540 | -5/Upper Caves | Entered another Upper Caves area 11571 | -5/Upper Caves | A Commander dispatched an escort 11573 | -5/Upper Caves | Learned Factory security intel 11573 | -5/Upper Caves | Learned Armory emergency access door positions 11573 | -5/Upper Caves | Learned Research trap positions 11783 | -5/Upper Caves | Discovered new exit (range 15) 11785 | -5/Upper Caves | Encountered a Warlord checkpoint 11786 | -5/Upper Caves | Identified exit to Warlord 11803 | -5/Upper Caves | Entered Warlord 11847 | -5/Warlord | Found Prototype Special Weapon 11847 | -5/Warlord | Identified RU-N14's Throwing Claymores v3 11849 | -5/Warlord | Found RU-N14's Throwing Claymores v3 11852 | -5/Warlord | Found RU-N14's Throwing Claymores v3 11905 | -5/Warlord | Learned Factory garrison access intel 11905 | -5/Warlord | Learned Armory repair station intel 11905 | -5/Warlord | Learned Research fabricator intel 11905 | -5/Warlord | Learned Research scanalyzer intel 11971 | -5/Warlord | Warlord's base attacked by MAIN.C 11997 | -5/Warlord | Found Prototype Energy Gun 11997 | -5/Warlord | Identified Vortex Rail 12056 | -5/Warlord | Met Warlord 12058 | -5/Warlord | Opened Warlord's prototype stash 12059 | -5/Warlord | Found Prototype Device 12059 | -5/Warlord | Identified System Purifier 12072 | -5/Warlord | Found Prototype Device 12072 | -5/Warlord | Identified Exp. Cloaking Device 12082 | -5/Warlord | Found Ghost Barrier 12312 | -5/Warlord | Spotted Executioner 12318 | -5/Warlord | Destroyed Executioner 12321 | -5/Warlord | Warlord forces counterattacked 12348 | -5/Warlord | Found Prototype Processor 12348 | -5/Warlord | Identified Exp. Targeting Computer 12388 | -5/Warlord | Found RU-N14's Throwing Claymores v3 12391 | -5/Warlord | Found RU-N14's Throwing Claymores v3 12621 | -5/Warlord | Build established: Wizard-Mutant 12646 | -5/Warlord | Warlord base infiltrated, sounded retreat 12686 | -5/Warlord | Spotted Executioner 12688 | -5/Warlord | Destroyed Executioner 12692 | -5/Warlord | Found Prototype Device 12692 | -5/Warlord | Identified Exp. Shock Absorption System 12699 | -5/Warlord | Discovered new exit (range 14) 12701 | -5/Warlord | Identified exit to Proximity Caves 12703 | -5/Warlord | Entered Proximity Caves 13161 | -4/Proximity Caves | Learned Research interactive machine intel 13343 | -4/Proximity Caves | Learned location of Testing (-3) 13488 | -4/Proximity Caves | Discovered new exit (range 11) 13520 | -4/Proximity Caves | Identified exit to Factory 13521 | -4/Proximity Caves | Entered Factory 13521 | -4/Factory | Evolved 2 slots: Power x1, Utility x1 13523 | -4/Factory | Loaded intel: 4 garrison access locations 13547 | -4/Factory | Spotted B-86 Titan 13572 | -4/Factory | Identified exit to Upper Caves 13677 | -4/Factory | Fabricated Lgt. Quantum Reactor (x2) 13973 | -4/Factory | Identified exit to Research 13989 | -4/Factory | Central database locked down 14436 | -4/Factory | Entered Upper Caves 14476 | -4/Upper Caves | Learned Research terminal intel 14514 | -4/Upper Caves | Encountered a Warlord checkpoint 14606 | -4/Upper Caves | Attacked by a delusional Derelict stockpiling parts 14608 | -4/Upper Caves | Discovered new exit (range 9) 14611 | -4/Upper Caves | Entered another Upper Caves area 14692 | -4/Upper Caves | Build established: Hacker-Sprinter 14720 | -4/Upper Caves | Discovered new exit (range 14) 14723 | -4/Upper Caves | Entered Zhirov 14723 | -4/Zhirov | Discovered new exit (range 3) 14727 | -4/Zhirov | Met Zhirov 14731 | -4/Zhirov | Learned location of Quarantine (-2) 14731 | -4/Zhirov | Learned location of Command (-1) 14735 | -4/Zhirov | Zhirov requested help retrieving the SGEMP Prototype 14738 | -4/Zhirov | Found Alien Artifact 14738 | -4/Zhirov | Identified Integrated Reactor 14738 | -4/Zhirov | Installed Integrated Reactor, increased core energy generation (+10) 14760 | -4/Zhirov | Found Alien Artifact 14772 | -4/Zhirov | Entered Proximity Caves 15076 | -3/Proximity Caves | Discovered exit to Research (range 16) 15078 | -3/Proximity Caves | Entered Research 15078 | -3/Research | Evolved 2 slots: Propulsion x1, Utility x1 15079 | -3/Research | Loaded intel: 71 trap records 15080 | -3/Research | Loaded intel: 44 interactive machine locations 15081 | -3/Research | Loaded intel: 22 terminal locations 15082 | -3/Research | Loaded intel: 4 fabricator locations 15083 | -3/Research | Loaded intel: 6 scanalyzer locations 15095 | -3/Research | Spotted B-86 Titan 15179 | -3/Research | Discovered new exit (range 15) 15184 | -3/Research | Identified exit to Armory 15184 | -3/Research | Identified exit to Testing 15184 | -3/Research | Central database locked down 15187 | -3/Research | Entered Armory 15189 | -3/Armory | Loaded intel: 2 repair station locations 15308 | -3/Armory | Repaired Med. Storage Unit 15481 | -3/Armory | Fabricated Femtoactuators (x1) 15518 | -3/Armory | Found Prototype Device 15518 | -3/Armory | Identified Exp. Thermal Shield 15569 | -3/Armory | Identified Transdimensional Reconstructor 15569 | -3/Armory | Warped through subspace to slip node 15569 | -3/Armory | Discovered new exit (range 1) 15605 | -3/Armory | Discovered new exit (range 3) 15615 | -3/Armory | Entered Lab 15615 | -3/Lab | Discovered new exit (range 9) 15617 | -3/Lab | Hidden lab's door opened automatically 15617 | -3/Lab | Sensor layout match revealed 15618 | -3/Lab | Gained access to the hidden lab's interior 15685 | -3/Lab | Build established: Wizard-Sprinter 15710 | -3/Lab | Found Prototype Energy Gun 15710 | -3/Lab | Identified Tachyon Dispersion Ray 15713 | -3/Lab | Found Prototype Energy Gun 15713 | -3/Lab | Identified Hyp. EM Gauss Rifle 15717 | -3/Lab | Unable to decrypt terminal 15725 | -3/Lab | Found Prototype Special Weapon 15725 | -3/Lab | Identified Gui. Remote Datajack 15748 | -3/Lab | Found Deep Network Scanner 15788 | -3/Lab | Found Alien Artifact 15788 | -3/Lab | Identified Core Reset Matrix 15788 | -3/Lab | Identified Dimensional Node Initializer 15788 | -3/Lab | Used Core Reset Matrix 15792 | -3/Lab | Sensed 3 artifacts in vicinity 15793 | -3/Lab | Found Core Expander 15793 | -3/Lab | Installed Core Expander, added new Propulsion slot 15798 | -3/Lab | Found Integrated Mediator 15798 | -3/Lab | Installed Integrated Mediator, increased core attachment efficiency. 15802 | -3/Lab | Found Transdimensional Reconstructor 15802 | -3/Lab | Warped through subspace 15803 | -3/Lab | Detected by scanners 15805 | -3/Lab | Discovered new exit (range 6) 15806 | -3/Lab | Entered Research 15806 | -2/Research | Warlord forces began assault on 0b10 15806 | -2/Research | Evolved 2 slots: Utility x2 15902 | -2/Research | Identified exit to Quarantine 15902 | -2/Research | Identified exit to Access 15916 | -2/Research | Research machine network offline 16064 | -2/Research | Met up with Warlord 16103 | -2/Research | Spotted Striker 16160 | -2/Research | Borebot progress halted 16250 | -2/Research | Spotted Striker 16264 | -2/Research | Entered Quarantine 16265 | -2/Quarantine | Maximum security lockdown engaged 16265 | -2/Quarantine | Detected hypermatrix surge 16265 | -2/Quarantine | Sensed 15 artifacts in vicinity 16272 | -2/Quarantine | Found Transdimensional Reconstructor 16275 | -2/Quarantine | Found Hpw. Transdimensional Reconstructor 16277 | -2/Quarantine | Found Hpw. Transdimensional Reconstructor 16278 | -2/Quarantine | Found Hpw. Transdimensional Reconstructor 16322 | -2/Quarantine | Found Subatomic Replicator 16336 | -2/Quarantine | Found Sigix Broadsword 16357 | -2/Quarantine | Found Core Stripper 16364 | -2/Quarantine | Spotted Fortress 16376 | -2/Quarantine | Discovered new exit (range 6) 16377 | -2/Quarantine | Entered Section 7 16378 | -2/Section 7 | Maximum security lockdown engaged 16378 | -2/Section 7 | Sensed 26 artifacts in vicinity 16380 | -2/Section 7 | Spotted S7 Guard 16382 | -2/Section 7 | Found Integrated Thermoelectric Network 16382 | -2/Section 7 | Installed Integrated Thermoelectric Network, gained heat-energy exchange potential 16398 | -2/Section 7 | Found Integrated Mediator 16398 | -2/Section 7 | Installed Integrated Mediator, increased core attachment efficiency. 16403 | -2/Section 7 | Found Prototype Processor 16403 | -2/Section 7 | Identified Exp. Core Analyzer 16407 | -2/Section 7 | Found Integrated Dissipator 16407 | -2/Section 7 | Installed Integrated Dissipator, increased core heat dissipation (+20) 16410 | -2/Section 7 | Discovered exit to Access (range 15) 16411 | -2/Section 7 | Initialized slip node 16416 | -2/Section 7 | Spotted S7 Guard 16419 | -2/Section 7 | Found Navigation Efficiency Matrix 16419 | -2/Section 7 | Installed Navigation Efficiency Matrix, process failed with unexpected side effects 16434 | -2/Section 7 | Spotted S7 Guard 16436 | -2/Section 7 | Found Core Membrane 16436 | -2/Section 7 | Installed Core Membrane, gained immunity to corruption 16463 | -2/Section 7 | Found Spacefold Activator 16498 | -2/Section 7 | Spotted Alpha 7 16499 | -2/Section 7 | Spotted Alpha 7 16501 | -2/Section 7 | Spotted B-99 Colossus 16512 | -2/Section 7 | Used Subatomic Replicator to replicate LRC Boosters 16513 | -2/Section 7 | Intercept squad dispatched 16513 | -2/Section 7 | Found LRC Boosters 16513 | -2/Section 7 | Installed LRC Boosters, increased mass support (+10) 16515 | -2/Section 7 | Installed LRC Boosters, increased mass support (+10) 16516 | -2/Section 7 | Found LRC Matter Compressor 16516 | -2/Section 7 | Installed LRC Matter Compressor, increased matter storage capacity (+125) 16524 | -2/Section 7 | Spotted Tracker 16525 | -2/Section 7 | Spotted Tracker 16531 | -2/Section 7 | Spotted Striker 16531 | -2/Section 7 | Spotted Striker 16545 | -2/Section 7 | Spotted Striker 16545 | -2/Section 7 | Spotted Striker 16546 | -2/Section 7 | Found Sigix Shearcannon 16547 | -2/Section 7 | Warped through subspace to slip node 16572 | -2/Section 7 | Found Integrated Mediator 16572 | -2/Section 7 | Installed Integrated Mediator, increased core attachment efficiency. 16575 | -2/Section 7 | Spotted S7 Guard 16578 | -2/Section 7 | Found Core Regenerator 16582 | -2/Section 7 | Spotted Executioner 16583 | -2/Section 7 | Spotted Striker 16583 | -2/Section 7 | Entered Access 16583 | -1/Access | Evolved 2 slots: Utility x2 16597 | -1/Access | Identified exit to Command 16656 | -1/Access | Fabricated Exp. Power Amplifier (x1) 16705 | -1/Access | Spotted B-99 Colossus 16746 | -1/Access | Intercept squad dispatched 16762 | -1/Access | Fabricated Prc. Energy Filter? 16833 | -1/Access | First assault squad dispatched 16864 | -1/Access | Repaired Imp. Diametric Drive 16969 | -1/Access | Spotted B-99 Colossus 16971 | -1/Access | Intercept squad dispatched 16991 | -1/Access | Spotted B-99 Colossus 16991 | -1/Access | Spotted B-99 Colossus 16993 | -1/Access | Entered Command 17033 | -1/Command | Repaired Lgt. Quantum Reactor 17042 | -1/Command | Used Core Regenerator, restored core integrity (+340) 17050 | -1/Command | Found Quantum Capacitor 17099 | -1/Command | Spotted B-99 Colossus 17179 | -1/Command | Repaired Cld. Nuclear Pulse Thruster 17213 | -1/Command | Disengaged cave seal 17213 | -1/Command | Derelicts emerged from the dark tunnel 17213 | -1/Command | Welcomed Warlord to Command 17228 | -1/Command | Spotted Combat Programmer 17245 | -1/Command | Met MAIN.C 17272 | -1/Command | Destroyed MAIN.C Shell 17272 | -1/Command | 0b10 Conduit disabled 17273 | -1/Command | MAIN.C activated Command garrisons 17304 | -1/Command | Spotted Combat Programmer 17316 | -1/Command | Core integrity fell below 50% 17334 | -1/Command | Emitted hypermatrix ping 17339 | -1/Command | Assembled emerged from beneath the floor 17343 | -1/Command | Lost 12 parts (2p4n5u1w) 17347 | -1/Command | Found Prototype Reactor 17347 | -1/Command | Identified Vortex Chain Reactor 17371 | -1/Command | Found Prototype Device 17371 | -1/Command | Identified AEGIS Remote Shield 17378 | -1/Command | Found Prototype Device 17378 | -1/Command | Identified Exp. ECM Suite 17381 | -1/Command | Found Prototype Device 17381 | -1/Command | Identified Exp. Weapon Cycler 17384 | -1/Command | Found Prototype Device 17384 | -1/Command | Identified Exp. System Purifier 17387 | -1/Command | Found Prototype Device 17387 | -1/Command | Identified Exp. Hardlight Generator 17401 | -1/Command | Core integrity fell below 20% 17432 | -1/Command | Spotted M Guard 17433 | -1/Command | Spotted M Guard 17443 | -1/Command | Destroyed by S-43 Plague with Heavy Machine Gun Last Messages --------------- 17435_ K-01 Serf collects debris. 17435_ Destroyed Unknown Energy Gun. 17435_ P-80 Master destroyed. 17436_ Slug penetrates Door. 17436_ Penetrated by Slug. 17437_ Destroyed Prototype Ballistic Gun. 17437_ P-80 Master destroyed. 17438_ The unstable cave ceiling collapses. 17438_ Dropped Femtoactuators. 17438_ Slug penetrates Reinforced Barrier. 17439_ Core Membrane filtered system corruption (1). 17439_ K-01 Serf collects debris. 17439_ Penetrated by Slug. 17440_ The unstable cave ceiling collapses. 17441_ Penetrated by Slug. 17442_ K-01 Serf collects debris. 17442_ Penetrated by Slug. 17442_ Adv. Energy Well destroyed. 17442_ Penetrated by Slug. 17442_ Med. Storage Unit destroyed. Map ----- +----------------------------------------------------+ | ?????????????????????????????????????????????????? | | ?????????????????????????????????????????????????? | | ?????????????????????????????????????????????????? | | ?????????????????????????????????????????????????? | | ?????????????????????????????????????????????????? | | ?????????????????????????????????????????????????? | | ?????????????????????????????????????????????????? | | ?????????????????????????????????????????????????? | | ?????????????????????????????????????????????????? | | ?????????????????????????????????????????????????? | | ?????????????????????????????????????????????????? | | ?????????????????????????????????????????????????? | | ?????????????????????????????????????????????????? | | ?????????????????????????????????????????????????? | | ?????????????????????????????????????????????????? | | ?????????????????????????????????????????????????? | | ?????????????????????????????????????????????????? | | ????????????#########+####???????????????????????? | | ??????????? #??##??????#????????????? | | ??????????? #?# #???? ##???????????? | | ??????????? ## #??? #???????????? | | ?????????? #? ##??????????? | | ?????????? # #??????????? | | ????????? % #??????????? | | ????????? !! !!! M #??????????? | | ????????? !! !! @ #??????????? | | ????????? !! !!! / #### ##????????????? | | ????????? #### ##????????????? | | ?????????? #][] #????????????? | | ?????????? #] ] #????????????? | | ???????????#### s #!!! *%%#????????????? | | ??????????????# hs # ! * % #????????????? | | ??????????????# ho ######"##????????????? | | ??????????????# s #????##??????????????? | | ??????????????# Yss#????????????????????? | | ??????????????# #######Y #????????????????????? | | ??????????????# #?????# p#????????????????????? | | ??????????????# #?????# s%#????????????????????? | | ??????????????+ #?????# k #????????????????????? | | ??????????????# #?????# #????????????????????? | | ??????????????# #?????# #????????????????????? | | ??????????????# #?????# #????????????????????? | | ??????????????# #?????# "???????????????????? | | ??????????????# #?????# ""#??????????????????? | | ??????????????# #?????# ###??????????????????? | | ?????????????## #?????# #????????????????????? | | ?????????????# #?????# #????????????????????? | | ?????????????# #?????# #????????????????????? | | ?????????????# #?????+ #????????????????????? | | ?????????????# #?????# #????????????????????? | +----------------------------------------------------+ Best States ------------- Heat Dissipation 91 Energy Generation 85 Energy Capacity 1200 Matter Stores 425 Matter Capacity 425 Sight Range 23 Robot Scan Range 20 Terrain Scan Range 16 Terrain Scan Density 210 ECM Strength 3 Jamming Range 16 Cloak Strength 4 Power Amplification 40 Armor Coverage 225 Resistance: TH 10 Propulsion Shielding 66 Weapon Shielding 33 Weapon Cycling 30 Melee Speed Boost 50 Evasion (%) 78 Targeting Accuracy 12 Target Analysis 8 Core Analysis 6 Recoil Reduction 3 Energy Filtering 50 Kinecelleration 50 Force Boost 20 Offensive Hacking 78 Defensive Hacking 49 Authchip Count 1 Trap Extractor Capacity 6 Item Schematics ----------------- Prc. Matter Filter | -2/Section 7 | Archive Exp. Actuator Array | -2/Section 7 | Archive Hdn. Centrium Wheel | -2/Section 7 | Archive Exp. EM Disruption Field | -2/Section 7 | Archive Enh. Coil Gun | -2/Section 7 | Archive Exp. Power Amplifier | -2/Section 7 | Archive Exp. Signal Interpreter | -2/Section 7 | Archive Imp. Quantum Reactor | -1/Access | Hacked Prc. Energy Filter | -1/Access | Hacked Adv. Phase Shifter | -1/Access | Hacked Quantum Capacitor | -1/Access | Hacked Exp. Armor Integrity Analyzer | -1/Access | Hacked Robot Schematics ------------------ M-30 Cleanser | -2/Section 7 | Archive R-06 Scavenger | -2/Section 7 | Archive Fabricated ------------ Cld. Cesium-ion Thruster | x1 | -6/Factory Lgt. Quantum Reactor | x2 | -4/Factory | Preloaded Femtoactuators | x1 | -3/Armory Exp. Power Amplifier | x1 | -1/Access Prc. Energy Filter | x1 | -1/Access Alien Tech Used ----------------- Integrated Reactor Transdimensional Reconstructor Core Reset Matrix Core Expander Integrated Mediator Sigix Broadsword Integrated Thermoelectric Network Integrated Dissipator Dimensional Node Initializer Navigation Efficiency Matrix Core Membrane Spacefold Activator Subatomic Replicator LRC Boosters LRC Matter Compressor High-powered Transdimensional Reconstructor Sigix Shearcannon Core Regenerator Achievements -------------- Speed Demon Supersonic Challenges ------------ None Game ------ Seed ImpulseControlCloak Manual? 0 Play Time 04:57:53 Cumulative 308.9 hours Start 2022.05.30 @ 14:51:31 End 2022.05.30 @ 20:01:17 Sessions 1 Manual Loads 0 Difficulty Rogue Special Mode None Game No. 107 Rogue 92 Adventurer 15 Explorer 0 Win Type - Total 15 Types 4/0/6/1/2/0/2/0/0 Lore% 91 Gallery% 90 Achievement% 80 Wizard Run 0 Options --------- ASCII 0 Keyboard 0 Movement Numpad Keybinds 0 Fullscreen 1 Font 18/SmallcapsGlow Map View 76x50 Tactical HUD 1 Map Filters NONE Filters NONE Steam 1 RUN: 29a63de6-fbb1-4732-aaa1-2cb04f26f563